{"text_format":"1","workbook":"xlsx","n_sheets":7,"sheets":["Directions","Drop Down Lists","Report Option","Tracking Spreadsheet","Appropriateness of Abx","Lab Results","Antibiogram"],"not_rendered":{"charts":0,"images":1,"macros":1,"external_links":0,"defined_names":4,"comments":0,"pivot_tables":0},"unopened":[],"bounds":{"document_bytes":16777216,"sheet_cells":100000,"rows_first":2000,"rows_last":500,"rows_between":2000,"halvings":0,"cell_chars":16384,"cell_head_chars":4096},"cells_cut":0,"cells_raw":0,"read":"whole","date_system":"1900"}

{"sheet":"Directions","index":0,"n_rows":15,"n_cols":2,"rows_kept":15,"cut":false,"hidden":false,"merged":[[12,0,13,0],[4,0,4,1],[3,0,3,1],[3,2,3,3],[3,4,3,5],[1,0,1,1],[3,6,3,7],[3,8,3,9],[3,10,3,11],[3,12,3,13]]}
[]
["Urine Test Tracking Spreadsheet\nLast Updated: August 16, 2016"]
["Directions for Urine Test Tracking Spreadsheet"]
["This document does not replace your facility’s policies, procedures or protocols.  Facilities should always refer back to their policies, procedures and protocols."]
["The Urine Test Tracking Spreadsheet is the tracking mechanism for Module 3 of the UTI Toolkit.  It will assist your facility in determining if staff is following the protocol."]
[null,"Directions for use:"]
[null,"All provider calls related to potential UTI need to be entered on this spreadsheet."]
[null,"Review medical record and document the event by following the directions given in each column."]
[null,"At the bottom of the spreadsheet, the numbers will auto calculate."]
[null,"If additional rows are needed to record events, insert rows above the yellow row."]
[null,"If desired, additional tabs can be created (e.g., month, quarter) to monitor progress after tool implementation or education. "]
[null,"Review the percentages from the data collected minimally monthly to determine if trends are present. "]
[null,"Goals: "]
[null,"1.     Only have cultures collected on residents which meet your facility definition of infection."]
[null,"2.     All physician or providers take the suggestion of the nurse."]

{"sheet":"Drop Down Lists","index":1,"n_rows":13,"n_cols":8,"rows_kept":13,"cut":false,"hidden":true,"merged":[[0,0,0,2]]}
["Please enter the following information about your organization. This step is important so you can select this information from drop down menus in the spreadsheets.  You can change this information at any time. Columns which use this information will be green in the spreadsheet. "]
[]
["List Room Names or Numbers","List Wing Names","Medical Providers Names","Nurse Names","Localized Signs/Symptoms","Non-localizing/Non-Specific Geriatric S/S","Warning Signs","Yes/No Indicators"]
[null,null,null,null,"None","None","None",0]
[null,null,null,null,"Acute dysuria","Behavioral changes","Fever",1]
[null,null,null,null,"New or worsening frequency","Fever alone","Clear-Cut Delirium: Altered LOC"]
[null,null,null,null,"New or worsening urgency","Functional decline","Clear-Cut Delirium: Disorganized Thinking"]
[null,null,null,null,"New or worsening incontinence","Mental status change","Clear-Cut Delirium: Psychomotor Retardation"]
[null,null,null,null,"Gross hematuria","Falls","Rigors (shaking chills)"]
[null,null,null,null,"Suprapubic pain","Restlessness","Hemodynamic Instability: Hypotension"]
[null,null,null,null,"Costoalvertebral angle pain","Fatique","Hemodynamic Instability: Tachycardia"]
[null,null,null,null,"New scrotal/prostrate pain","\"Not Being Her-Himself\""]
[null,null,null,null,"Urethral purulence"]

{"sheet":"Report Option","index":2,"n_rows":45,"n_cols":6,"rows_kept":45,"cut":false,"hidden":true,"merged":[[0,0,0,5],[15,0,15,5],[22,0,22,5],[16,0,16,1],[17,0,17,1],[18,0,18,1],[19,0,19,1],[20,0,20,1],[3,0,3,1],[44,1,44,2],[28,0,28,5],[4,0,4,1],[5,0,5,1],[6,0,6,1],[7,0,7,1],[8,0,8,1],[9,0,9,1],[10,0,10,1],[11,0,11,1],[12,0,12,1]]}
["Infection Prevention and Control UTI and ASP Report "]
[]
[null,"Year:",{"$f":"#REF!","v":{"$error":"#REF!"}}]
["Facility Name:",null,{"$f":"#REF!","v":{"$error":"#REF!"}}]
["Individual responsible for tracking surveillance information:",null,{"$f":"#REF!","v":{"$error":"#REF!"}}]
["Frequency of Surveillance Conducted:",null,{"$f":"#REF!","v":{"$error":"#REF!"}}]
["Frequency of Surveillance Information Shared:",null,{"$f":"#REF!","v":{"$error":"#REF!"}}]
["Who receives the Surveillance Reports:",null,{"$f":"#REF!","v":{"$error":"#REF!"}}]
["Designated Infection Prevention and Control Officer:",null,{"$f":"#REF!","v":{"$error":"#REF!"}}]
["Medical Director:",null,{"$f":"#REF!","v":{"$error":"#REF!"}}]
["Director of Nursing:",null,{"$f":"#REF!","v":{"$error":"#REF!"}}]
["Lead for Antibiotic Stewardship Activities:",null,{"$f":"#REF!","v":{"$error":"#REF!"}}]
["Individual with antimicrobial stewardship Expertise:",null,{"$f":"#REF!","v":{"$error":"#REF!"}}]
[]
[]
["Antibiotic Stewardship Current Status"]
["Leadership Support Score",null,{"$f":"#REF!","v":{"$error":"#REF!"}}]
["Prevention Score",null,{"$f":"#REF!","v":{"$error":"#REF!"}}]
["Tracking Score",null,{"$f":"#REF!","v":{"$error":"#REF!"}}]
["Reporting Score",null,{"$f":"#REF!","v":{"$error":"#REF!"}}]
["Education Score",null,{"$f":"#REF!","v":{"$error":"#REF!"}}]
[]
["Monitoring or UTI Script Utilization and Success"]
["Number of Reviews Completed for UTI Algorithm","UA Ordered","Culture Ordered","Meets Facility Criteria for Non- cath UTI","Meets Facility Criteria for Cath Associated UTI","Provider Action Compatible with Script"]
[{"$f":"'Tracking Spreadsheet'!B100","v":0},{"$f":"'Tracking Spreadsheet'!I102","v":{"$error":"#DIV/0!"}},{"$f":"'Tracking Spreadsheet'!J102","v":{"$error":"#DIV/0!"}},{"$f":"'Tracking Spreadsheet'!K102","v":{"$error":"#DIV/0!"}},{"$f":"'Tracking Spreadsheet'!L102","v":{"$error":"#DIV/0!"}},{"$f":"'Tracking Spreadsheet'!M102","v":{"$error":"#DIV/0!"}}]
[]
[]
[]
["Monitoring Appropriate Antibiotic Utilization and Pathogen"]
[null,"Number of Cultures","Cx had three or more organisms","Was colony forming units within established standards"]
[null,{"$f":"'Appropriateness of Abx'!AC101","v":0},{"$f":"'Appropriateness of Abx'!AD104","v":{"$error":"#DIV/0!"}},{"$f":"'Appropriateness of Abx'!AE104","v":{"$error":"#DIV/0!"}}]
[null,null,"A higher percentage is not desirable.","A higher percentage is  desirable."]
[]
["E-coli","Proteus spp.","Klebsiella spp.","Citrobacter spp.","Enterbacter spp.","Pseudomonas aeruginosa"]
[{"$f":"'Appropriateness of Abx'!AG104","v":{"$error":"#DIV/0!"}},{"$f":"'Appropriateness of Abx'!AH104","v":{"$error":"#DIV/0!"}},{"$f":"'Appropriateness of Abx'!AI104","v":{"$error":"#DIV/0!"}},{"$f":"'Appropriateness of Abx'!AJ104","v":{"$error":"#DIV/0!"}},{"$f":"'Appropriateness of Abx'!AK104","v":{"$error":"#DIV/0!"}},{"$f":"'Appropriateness of Abx'!AL104","v":{"$error":"#DIV/0!"}}]
[]
["Serratia spp. ","Morganella spp.","Other Gram Negative Bacteria","Coag Neg Staph","S. aureus","Enterococci spp."]
[{"$f":"'Appropriateness of Abx'!AM104","v":{"$error":"#DIV/0!"}},{"$f":"'Appropriateness of Abx'!AN104","v":{"$error":"#DIV/0!"}},{"$f":"'Appropriateness of Abx'!AO104","v":{"$error":"#DIV/0!"}},{"$f":"'Appropriateness of Abx'!AP104","v":{"$error":"#DIV/0!"}},{"$f":"'Appropriateness of Abx'!AQ104","v":{"$error":"#DIV/0!"}},{"$f":"'Appropriateness of Abx'!AR104","v":{"$error":"#DIV/0!"}}]
[]
["Streptococcus spp., ","Other Gram Positive Bacteria","Yeast"]
[{"$f":"'Appropriateness of Abx'!AS104","v":{"$error":"#DIV/0!"}},{"$f":"'Appropriateness of Abx'!AT104","v":{"$error":"#DIV/0!"}},{"$f":"'Appropriateness of Abx'!AU104","v":{"$error":"#DIV/0!"}}]
[]
["Total of Antibiotics Ordered","Was the initial Abx order appropriate for the pathogen?","If not appropriate, did the provider change Abx with prompts within 72 hr. of culture?"]
[{"$f":"'Appropriateness of Abx'!N103","v":0},{"$f":"'Appropriateness of Abx'!AX104","v":{"$error":"#DIV/0!"}},{"$f":"'Appropriateness of Abx'!AY104","v":{"$error":"#DIV/0!"}}]
[null,"Goal is to have 100% when these two columns are added."]

{"sheet":"Tracking Spreadsheet","index":3,"n_rows":102,"n_cols":16,"rows_kept":102,"cut":false,"hidden":false,"merged":[[0,0,0,1],[0,2,0,5],[0,7,0,9],[0,10,0,15]]}
["General Information",null,"Nursing Assessment",null,null,null,null,"Provider Ordering Results",null,null,"Audit of Process"]
["Room","Resident's Name","Date Symptoms Started\n(mm/dd/yy)","Localizing Urinary Signs and Symptoms \n(Choose 1 or more from dropdown)"," Non-Localized  \nNon-Specific Geriatric Signs and Symptoms \n(Choose 1 or more from dropdown)","Warning Signs\n(Choose 1 or more from dropdown)","Other Signs or Symptoms not listed","Physician or Provider ","UA Ordered\n(No = 0, Yes = 1\nblank for NA)","Culture Ordered\n(No = 0, Yes = 1\nblank for NA)","Meets Facility Criteria for \nNon-cath UTI\n(No = 0, Yes = 1\nblank for NA)","Meets Facility Criteria for Cath Associated UTI\n (No = 0, Yes = 1\nblank for NA)","Provider Action Compatible with Script\n(No = 0, Yes = 1\nblank for NA)","If Inappropriate Medical Director Review\n(No = 0, Yes = 1\nblank for NA)","Medical Director Review Completed\n(mm/dd/yy)","Additional Comments"]
[]
[]
[]
[]
[]
[]
[]
[]
[]
[]
[]
[]
[]
[]
[]
[]
[]
[]
[]
[]
[]
[]
[]
[]
[]
[]
[]
[]
[]
[]
[]
[]
[]
[]
[]
[]
[]
[]
[]
[]
[]
[]
[]
[]
[]
[]
[]
[]
[]
[]
[]
[]
[]
[]
[]
[]
[]
[]
[]
[]
[]
[]
[]
[]
[]
[]
[]
[]
[]
[]
[]
[]
[]
[]
[]
[]
[]
[]
[]
[]
[]
[]
[]
[]
[]
[]
[]
[]
[]
[]
[]
[]
[]
[]
[]
[]
[]
[null,{"$f":"COUNTA(B3:B99)","v":0},null,null,null,null,null,null,{"$f":"SUM(I3:I99)","v":0},{"$f":"SUM(J3:J99)","v":0},{"$f":"SUM(K3:K99)","v":0},{"$f":"SUM(L3:L99)","v":0},{"$f":"SUM(M3:M99)","v":0}]
[null,"Number of Entries",null,null,null,null,null,null,{"$f":"I2","v":"UA Ordered\n(No = 0, Yes = 1\nblank for NA)"},{"$f":"J2","v":"Culture Ordered\n(No = 0, Yes = 1\nblank for NA)"},{"$f":"K2","v":"Meets Facility Criteria for \nNon-cath UTI\n(No = 0, Yes = 1\nblank for NA)"},{"$f":"L2","v":"Meets Facility Criteria for Cath Associated UTI\n (No = 0, Yes = 1\nblank for NA)"},{"$f":"M2","v":"Provider Action Compatible with Script\n(No = 0, Yes = 1\nblank for NA)"}]
[null,null,null,null,null,null,null,null,{"$f":"I100/$B$100","v":{"$error":"#DIV/0!"}},{"$f":"J100/$B$100","v":{"$error":"#DIV/0!"}},{"$f":"K100/$B$100","v":{"$error":"#DIV/0!"}},{"$f":"L100/$B$100","v":{"$error":"#DIV/0!"}},{"$f":"M100/$B$100","v":{"$error":"#DIV/0!"}}]

{"sheet":"Appropriateness of Abx","index":4,"n_rows":105,"n_cols":51,"rows_kept":105,"cut":false,"hidden":true,"merged":[[114,10,114,13],[115,10,115,13],[116,10,116,13],[1,49,1,50],[109,10,109,13],[110,10,110,13],[112,10,112,13],[113,10,113,13],[111,10,111,13],[1,28,1,30],[1,24,1,27],[104,49,104,50],[1,32,1,48],[0,24,0,27],[0,31,1,31],[0,0,1,0],[0,1,0,9],[1,1,1,3],[1,4,1,5],[1,6,1,9],[1,12,1,19],[1,20,1,23]]}
[null,"Moved Forward from When to Test",null,null,null,null,null,null,null,null,null,null,null,null,null,null,null,null,null,null,null,null,null,null,"Moved Forward from When to Test"]
[null,"General Information",null,null,"Gender",null,"Nursing Assessment",null,null,null,null,null,"Antibiotic Information",null,null,null,null,null,null,null,"Pharmacist Review",null,null,null,"Specimen Order",null,null,null,"Validity of Specimens",null,null,null,"Culture Results",null,null,null,null,null,null,null,null,null,null,null,null,null,null,null,null,"Audit Process"]
["Wing","Room","Resident's Name","DOB (not on when to test)","Female (not on when to test)"," Male (not on when to test)","Date Symptoms Started","Urinary Localized  Signs and Symptoms","Non-Localized  \nNon-Specific Signs and Symptoms","Warning Signs","Primary Provider","No Antibiotic Ordered","Antibiotic Started\nA through L","Antibiotic Started\nM through V","Other Antibiotic not in drop down list.","Dose","Frequency","Route","Duration in Days","Indication","Last Available Serum Creatinine","Last Resident Weight","Resident Height","Abx Stop Date","Specimen Type (no longer in when to test)","Specify Other Specimen Type (no longer in when to test)","Date UA Collected (no longer in when to test)","UA Results (no longer in when to test)","Date of Culture and Sensitivity","Cx had three or more organisms","Was colony forming units within established standards","Culture Results (no longer in when to test)","E-coli","Proteus spp.","Klebsiella spp.","Citrobacter spp.","Enterbacter spp.","Pseudomonas aeruginosa","Serratia spp.","Morganella spp.","other gram negative bacteria","Coag neg Staph","S. aureus","Enterococcus spp.","Streptococcus spp.","other gram positive bacteria","Yeast","Indicate if considered a Multi-drug Resistant Organism?","Comments on Cx Result","Was the initial Abx order appropriate for the pathogen?","If not appropriate, did the provider change Abx with prompts within 72 hr. of culture?"]
[null,{"$f":"'Tracking Spreadsheet'!A3","v":0},{"$f":"'Tracking Spreadsheet'!B3","v":0},{"$f":"'Tracking Spreadsheet'!#REF!","v":{"$error":"#REF!"}},{"$f":"'Tracking Spreadsheet'!#REF!","v":{"$error":"#REF!"}},{"$f":"'Tracking Spreadsheet'!#REF!","v":{"$error":"#REF!"}},{"$f":"'Tracking Spreadsheet'!C3","v":"00:00:00"},{"$f":"'Tracking Spreadsheet'!D3","v":0},{"$f":"'Tracking Spreadsheet'!E3","v":0},{"$f":"'Tracking Spreadsheet'!F3","v":0},null,0,null,null,null,null,null,null,null,null,null,null,null,null,{"$f":"'Tracking Spreadsheet'!#REF!","v":{"$error":"#REF!"}},{"$f":"'Tracking Spreadsheet'!#REF!","v":{"$error":"#REF!"}},{"$f":"'Tracking Spreadsheet'!#REF!","v":{"$error":"#REF!"}},{"$f":"'Tracking Spreadsheet'!#REF!","v":{"$error":"#REF!"}},null,0,0,{"$f":"'Tracking Spreadsheet'!#REF!","v":{"$error":"#REF!"}}]
[null,{"$f":"'Tracking Spreadsheet'!A4","v":0},{"$f":"'Tracking Spreadsheet'!B4","v":0},{"$f":"'Tracking Spreadsheet'!#REF!","v":{"$error":"#REF!"}},{"$f":"'Tracking Spreadsheet'!#REF!","v":{"$error":"#REF!"}},{"$f":"'Tracking Spreadsheet'!#REF!","v":{"$error":"#REF!"}},{"$f":"'Tracking Spreadsheet'!C4","v":"00:00:00"},{"$f":"'Tracking Spreadsheet'!D4","v":0},{"$f":"'Tracking Spreadsheet'!E4","v":0},{"$f":"'Tracking Spreadsheet'!F4","v":0},null,0,null,null,null,null,null,null,null,null,null,null,null,null,{"$f":"'Tracking Spreadsheet'!#REF!","v":{"$error":"#REF!"}},{"$f":"'Tracking Spreadsheet'!#REF!","v":{"$error":"#REF!"}},{"$f":"'Tracking Spreadsheet'!#REF!","v":{"$error":"#REF!"}},{"$f":"'Tracking Spreadsheet'!#REF!","v":{"$error":"#REF!"}},null,0,0,{"$f":"'Tracking Spreadsheet'!#REF!","v":{"$error":"#REF!"}}]
[null,{"$f":"'Tracking Spreadsheet'!A5","v":0},{"$f":"'Tracking Spreadsheet'!B5","v":0},{"$f":"'Tracking Spreadsheet'!#REF!","v":{"$error":"#REF!"}},{"$f":"'Tracking Spreadsheet'!#REF!","v":{"$error":"#REF!"}},{"$f":"'Tracking Spreadsheet'!#REF!","v":{"$error":"#REF!"}},{"$f":"'Tracking Spreadsheet'!C5","v":"00:00:00"},{"$f":"'Tracking Spreadsheet'!D5","v":0},{"$f":"'Tracking Spreadsheet'!E5","v":0},{"$f":"'Tracking Spreadsheet'!F5","v":0},null,0,null,null,null,null,null,null,null,null,null,null,null,null,{"$f":"'Tracking Spreadsheet'!#REF!","v":{"$error":"#REF!"}},{"$f":"'Tracking Spreadsheet'!#REF!","v":{"$error":"#REF!"}},{"$f":"'Tracking Spreadsheet'!#REF!","v":{"$error":"#REF!"}},{"$f":"'Tracking Spreadsheet'!#REF!","v":{"$error":"#REF!"}},null,0,0,{"$f":"'Tracking Spreadsheet'!#REF!","v":{"$error":"#REF!"}}]
[null,{"$f":"'Tracking Spreadsheet'!A6","v":0},{"$f":"'Tracking Spreadsheet'!B6","v":0},{"$f":"'Tracking Spreadsheet'!#REF!","v":{"$error":"#REF!"}},{"$f":"'Tracking Spreadsheet'!#REF!","v":{"$error":"#REF!"}},{"$f":"'Tracking Spreadsheet'!#REF!","v":{"$error":"#REF!"}},{"$f":"'Tracking Spreadsheet'!C6","v":"00:00:00"},{"$f":"'Tracking Spreadsheet'!D6","v":0},{"$f":"'Tracking Spreadsheet'!E6","v":0},{"$f":"'Tracking Spreadsheet'!F6","v":0},null,0,null,null,null,null,null,null,null,null,null,null,null,null,{"$f":"'Tracking Spreadsheet'!#REF!","v":{"$error":"#REF!"}},{"$f":"'Tracking Spreadsheet'!#REF!","v":{"$error":"#REF!"}},{"$f":"'Tracking Spreadsheet'!#REF!","v":{"$error":"#REF!"}},{"$f":"'Tracking Spreadsheet'!#REF!","v":{"$error":"#REF!"}},null,0,0,{"$f":"'Tracking Spreadsheet'!#REF!","v":{"$error":"#REF!"}}]
[null,{"$f":"'Tracking Spreadsheet'!A7","v":0},{"$f":"'Tracking Spreadsheet'!B7","v":0},{"$f":"'Tracking Spreadsheet'!#REF!","v":{"$error":"#REF!"}},{"$f":"'Tracking Spreadsheet'!#REF!","v":{"$error":"#REF!"}},{"$f":"'Tracking Spreadsheet'!#REF!","v":{"$error":"#REF!"}},{"$f":"'Tracking Spreadsheet'!C7","v":"00:00:00"},{"$f":"'Tracking Spreadsheet'!D7","v":0},{"$f":"'Tracking Spreadsheet'!E7","v":0},{"$f":"'Tracking Spreadsheet'!F7","v":0},null,0,null,null,null,null,null,null,null,null,null,null,null,null,{"$f":"'Tracking Spreadsheet'!#REF!","v":{"$error":"#REF!"}},{"$f":"'Tracking Spreadsheet'!#REF!","v":{"$error":"#REF!"}},{"$f":"'Tracking Spreadsheet'!#REF!","v":{"$error":"#REF!"}},{"$f":"'Tracking Spreadsheet'!#REF!","v":{"$error":"#REF!"}},null,0,0,{"$f":"'Tracking Spreadsheet'!#REF!","v":{"$error":"#REF!"}}]
[null,{"$f":"'Tracking Spreadsheet'!A8","v":0},{"$f":"'Tracking Spreadsheet'!B8","v":0},{"$f":"'Tracking Spreadsheet'!#REF!","v":{"$error":"#REF!"}},{"$f":"'Tracking Spreadsheet'!#REF!","v":{"$error":"#REF!"}},{"$f":"'Tracking Spreadsheet'!#REF!","v":{"$error":"#REF!"}},{"$f":"'Tracking Spreadsheet'!C8","v":"00:00:00"},{"$f":"'Tracking Spreadsheet'!D8","v":0},{"$f":"'Tracking Spreadsheet'!E8","v":0},{"$f":"'Tracking Spreadsheet'!F8","v":0},null,0,null,null,null,null,null,null,null,null,null,null,null,null,{"$f":"'Tracking Spreadsheet'!#REF!","v":{"$error":"#REF!"}},{"$f":"'Tracking Spreadsheet'!#REF!","v":{"$error":"#REF!"}},{"$f":"'Tracking Spreadsheet'!#REF!","v":{"$error":"#REF!"}},{"$f":"'Tracking Spreadsheet'!#REF!","v":{"$error":"#REF!"}},null,0,0,{"$f":"'Tracking Spreadsheet'!#REF!","v":{"$error":"#REF!"}}]
[null,{"$f":"'Tracking Spreadsheet'!A9","v":0},{"$f":"'Tracking Spreadsheet'!B9","v":0},{"$f":"'Tracking Spreadsheet'!#REF!","v":{"$error":"#REF!"}},{"$f":"'Tracking Spreadsheet'!#REF!","v":{"$error":"#REF!"}},{"$f":"'Tracking Spreadsheet'!#REF!","v":{"$error":"#REF!"}},{"$f":"'Tracking Spreadsheet'!C9","v":"00:00:00"},{"$f":"'Tracking Spreadsheet'!D9","v":0},{"$f":"'Tracking Spreadsheet'!E9","v":0},{"$f":"'Tracking Spreadsheet'!F9","v":0},null,0,null,null,null,null,null,null,null,null,null,null,null,null,{"$f":"'Tracking Spreadsheet'!#REF!","v":{"$error":"#REF!"}},{"$f":"'Tracking Spreadsheet'!#REF!","v":{"$error":"#REF!"}},{"$f":"'Tracking Spreadsheet'!#REF!","v":{"$error":"#REF!"}},{"$f":"'Tracking Spreadsheet'!#REF!","v":{"$error":"#REF!"}},null,0,0,{"$f":"'Tracking Spreadsheet'!#REF!","v":{"$error":"#REF!"}}]
[null,{"$f":"'Tracking Spreadsheet'!A10","v":0},{"$f":"'Tracking Spreadsheet'!B10","v":0},{"$f":"'Tracking Spreadsheet'!#REF!","v":{"$error":"#REF!"}},{"$f":"'Tracking Spreadsheet'!#REF!","v":{"$error":"#REF!"}},{"$f":"'Tracking Spreadsheet'!#REF!","v":{"$error":"#REF!"}},{"$f":"'Tracking Spreadsheet'!C10","v":"00:00:00"},{"$f":"'Tracking Spreadsheet'!D10","v":0},{"$f":"'Tracking Spreadsheet'!E10","v":0},{"$f":"'Tracking Spreadsheet'!F10","v":0},null,0,null,null,null,null,null,null,null,null,null,null,null,null,{"$f":"'Tracking Spreadsheet'!#REF!","v":{"$error":"#REF!"}},{"$f":"'Tracking Spreadsheet'!#REF!","v":{"$error":"#REF!"}},{"$f":"'Tracking Spreadsheet'!#REF!","v":{"$error":"#REF!"}},{"$f":"'Tracking Spreadsheet'!#REF!","v":{"$error":"#REF!"}},null,0,0,{"$f":"'Tracking Spreadsheet'!#REF!","v":{"$error":"#REF!"}}]
[null,{"$f":"'Tracking Spreadsheet'!A11","v":0},{"$f":"'Tracking Spreadsheet'!B11","v":0},{"$f":"'Tracking Spreadsheet'!#REF!","v":{"$error":"#REF!"}},{"$f":"'Tracking Spreadsheet'!#REF!","v":{"$error":"#REF!"}},{"$f":"'Tracking Spreadsheet'!#REF!","v":{"$error":"#REF!"}},{"$f":"'Tracking Spreadsheet'!C11","v":"00:00:00"},{"$f":"'Tracking Spreadsheet'!D11","v":0},{"$f":"'Tracking Spreadsheet'!E11","v":0},{"$f":"'Tracking Spreadsheet'!F11","v":0},null,0,null,null,null,null,null,null,null,null,null,null,null,null,{"$f":"'Tracking Spreadsheet'!#REF!","v":{"$error":"#REF!"}},{"$f":"'Tracking Spreadsheet'!#REF!","v":{"$error":"#REF!"}},{"$f":"'Tracking Spreadsheet'!#REF!","v":{"$error":"#REF!"}},{"$f":"'Tracking Spreadsheet'!#REF!","v":{"$error":"#REF!"}},null,0,0,{"$f":"'Tracking Spreadsheet'!#REF!","v":{"$error":"#REF!"}}]
[null,{"$f":"'Tracking Spreadsheet'!A12","v":0},{"$f":"'Tracking Spreadsheet'!B12","v":0},{"$f":"'Tracking Spreadsheet'!#REF!","v":{"$error":"#REF!"}},{"$f":"'Tracking Spreadsheet'!#REF!","v":{"$error":"#REF!"}},{"$f":"'Tracking Spreadsheet'!#REF!","v":{"$error":"#REF!"}},{"$f":"'Tracking Spreadsheet'!C12","v":"00:00:00"},{"$f":"'Tracking Spreadsheet'!D12","v":0},{"$f":"'Tracking Spreadsheet'!E12","v":0},{"$f":"'Tracking Spreadsheet'!F12","v":0},null,0,null,null,null,null,null,null,null,null,null,null,null,null,{"$f":"'Tracking Spreadsheet'!#REF!","v":{"$error":"#REF!"}},{"$f":"'Tracking Spreadsheet'!#REF!","v":{"$error":"#REF!"}},{"$f":"'Tracking Spreadsheet'!#REF!","v":{"$error":"#REF!"}},{"$f":"'Tracking Spreadsheet'!#REF!","v":{"$error":"#REF!"}},null,0,0,{"$f":"'Tracking Spreadsheet'!#REF!","v":{"$error":"#REF!"}}]
[null,{"$f":"'Tracking Spreadsheet'!A13","v":0},{"$f":"'Tracking Spreadsheet'!B13","v":0},{"$f":"'Tracking Spreadsheet'!#REF!","v":{"$error":"#REF!"}},{"$f":"'Tracking Spreadsheet'!#REF!","v":{"$error":"#REF!"}},{"$f":"'Tracking Spreadsheet'!#REF!","v":{"$error":"#REF!"}},{"$f":"'Tracking Spreadsheet'!C13","v":"00:00:00"},{"$f":"'Tracking Spreadsheet'!D13","v":0},{"$f":"'Tracking Spreadsheet'!E13","v":0},{"$f":"'Tracking Spreadsheet'!F13","v":0},null,0,null,null,null,null,null,null,null,null,null,null,null,null,{"$f":"'Tracking Spreadsheet'!#REF!","v":{"$error":"#REF!"}},{"$f":"'Tracking Spreadsheet'!#REF!","v":{"$error":"#REF!"}},{"$f":"'Tracking Spreadsheet'!#REF!","v":{"$error":"#REF!"}},{"$f":"'Tracking Spreadsheet'!#REF!","v":{"$error":"#REF!"}},null,0,0,{"$f":"'Tracking Spreadsheet'!#REF!","v":{"$error":"#REF!"}}]
[null,{"$f":"'Tracking Spreadsheet'!A14","v":0},{"$f":"'Tracking Spreadsheet'!B14","v":0},{"$f":"'Tracking Spreadsheet'!#REF!","v":{"$error":"#REF!"}},{"$f":"'Tracking Spreadsheet'!#REF!","v":{"$error":"#REF!"}},{"$f":"'Tracking Spreadsheet'!#REF!","v":{"$error":"#REF!"}},{"$f":"'Tracking Spreadsheet'!C14","v":"00:00:00"},{"$f":"'Tracking Spreadsheet'!D14","v":0},{"$f":"'Tracking Spreadsheet'!E14","v":0},{"$f":"'Tracking Spreadsheet'!F14","v":0},null,0,null,null,null,null,null,null,null,null,null,null,null,null,{"$f":"'Tracking Spreadsheet'!#REF!","v":{"$error":"#REF!"}},{"$f":"'Tracking Spreadsheet'!#REF!","v":{"$error":"#REF!"}},{"$f":"'Tracking Spreadsheet'!#REF!","v":{"$error":"#REF!"}},{"$f":"'Tracking Spreadsheet'!#REF!","v":{"$error":"#REF!"}},null,0,0,{"$f":"'Tracking Spreadsheet'!#REF!","v":{"$error":"#REF!"}}]
[null,{"$f":"'Tracking Spreadsheet'!A15","v":0},{"$f":"'Tracking Spreadsheet'!B15","v":0},{"$f":"'Tracking Spreadsheet'!#REF!","v":{"$error":"#REF!"}},{"$f":"'Tracking Spreadsheet'!#REF!","v":{"$error":"#REF!"}},{"$f":"'Tracking Spreadsheet'!#REF!","v":{"$error":"#REF!"}},{"$f":"'Tracking Spreadsheet'!C15","v":"00:00:00"},{"$f":"'Tracking Spreadsheet'!D15","v":0},{"$f":"'Tracking Spreadsheet'!E15","v":0},{"$f":"'Tracking Spreadsheet'!F15","v":0},null,0,null,null,null,null,null,null,null,null,null,null,null,null,{"$f":"'Tracking Spreadsheet'!#REF!","v":{"$error":"#REF!"}},{"$f":"'Tracking Spreadsheet'!#REF!","v":{"$error":"#REF!"}},{"$f":"'Tracking Spreadsheet'!#REF!","v":{"$error":"#REF!"}},{"$f":"'Tracking Spreadsheet'!#REF!","v":{"$error":"#REF!"}},null,0,0,{"$f":"'Tracking Spreadsheet'!#REF!","v":{"$error":"#REF!"}}]
[null,{"$f":"'Tracking Spreadsheet'!A16","v":0},{"$f":"'Tracking Spreadsheet'!B16","v":0},{"$f":"'Tracking Spreadsheet'!#REF!","v":{"$error":"#REF!"}},{"$f":"'Tracking Spreadsheet'!#REF!","v":{"$error":"#REF!"}},{"$f":"'Tracking Spreadsheet'!#REF!","v":{"$error":"#REF!"}},{"$f":"'Tracking Spreadsheet'!C16","v":"00:00:00"},{"$f":"'Tracking Spreadsheet'!D16","v":0},{"$f":"'Tracking Spreadsheet'!E16","v":0},{"$f":"'Tracking Spreadsheet'!F16","v":0},null,0,null,null,null,null,null,null,null,null,null,null,null,null,{"$f":"'Tracking Spreadsheet'!#REF!","v":{"$error":"#REF!"}},{"$f":"'Tracking Spreadsheet'!#REF!","v":{"$error":"#REF!"}},{"$f":"'Tracking Spreadsheet'!#REF!","v":{"$error":"#REF!"}},{"$f":"'Tracking Spreadsheet'!#REF!","v":{"$error":"#REF!"}},null,0,0,{"$f":"'Tracking Spreadsheet'!#REF!","v":{"$error":"#REF!"}}]
[null,{"$f":"'Tracking Spreadsheet'!A17","v":0},{"$f":"'Tracking Spreadsheet'!B17","v":0},{"$f":"'Tracking Spreadsheet'!#REF!","v":{"$error":"#REF!"}},{"$f":"'Tracking Spreadsheet'!#REF!","v":{"$error":"#REF!"}},{"$f":"'Tracking Spreadsheet'!#REF!","v":{"$error":"#REF!"}},{"$f":"'Tracking Spreadsheet'!C17","v":"00:00:00"},{"$f":"'Tracking Spreadsheet'!D17","v":0},{"$f":"'Tracking Spreadsheet'!E17","v":0},{"$f":"'Tracking Spreadsheet'!F17","v":0},null,0,null,null,null,null,null,null,null,null,null,null,null,null,{"$f":"'Tracking Spreadsheet'!#REF!","v":{"$error":"#REF!"}},{"$f":"'Tracking Spreadsheet'!#REF!","v":{"$error":"#REF!"}},{"$f":"'Tracking Spreadsheet'!#REF!","v":{"$error":"#REF!"}},{"$f":"'Tracking Spreadsheet'!#REF!","v":{"$error":"#REF!"}},null,0,0,{"$f":"'Tracking Spreadsheet'!#REF!","v":{"$error":"#REF!"}}]
[null,{"$f":"'Tracking Spreadsheet'!A18","v":0},{"$f":"'Tracking Spreadsheet'!B18","v":0},{"$f":"'Tracking Spreadsheet'!#REF!","v":{"$error":"#REF!"}},{"$f":"'Tracking Spreadsheet'!#REF!","v":{"$error":"#REF!"}},{"$f":"'Tracking Spreadsheet'!#REF!","v":{"$error":"#REF!"}},{"$f":"'Tracking Spreadsheet'!C18","v":"00:00:00"},{"$f":"'Tracking Spreadsheet'!D18","v":0},{"$f":"'Tracking Spreadsheet'!E18","v":0},{"$f":"'Tracking Spreadsheet'!F18","v":0},null,0,null,null,null,null,null,null,null,null,null,null,null,null,{"$f":"'Tracking Spreadsheet'!#REF!","v":{"$error":"#REF!"}},{"$f":"'Tracking Spreadsheet'!#REF!","v":{"$error":"#REF!"}},{"$f":"'Tracking Spreadsheet'!#REF!","v":{"$error":"#REF!"}},{"$f":"'Tracking Spreadsheet'!#REF!","v":{"$error":"#REF!"}},null,0,0,{"$f":"'Tracking Spreadsheet'!#REF!","v":{"$error":"#REF!"}}]
[null,{"$f":"'Tracking Spreadsheet'!A19","v":0},{"$f":"'Tracking Spreadsheet'!B19","v":0},{"$f":"'Tracking Spreadsheet'!#REF!","v":{"$error":"#REF!"}},{"$f":"'Tracking Spreadsheet'!#REF!","v":{"$error":"#REF!"}},{"$f":"'Tracking Spreadsheet'!#REF!","v":{"$error":"#REF!"}},{"$f":"'Tracking Spreadsheet'!C19","v":"00:00:00"},{"$f":"'Tracking Spreadsheet'!D19","v":0},{"$f":"'Tracking Spreadsheet'!E19","v":0},{"$f":"'Tracking Spreadsheet'!F19","v":0},null,0,null,null,null,null,null,null,null,null,null,null,null,null,{"$f":"'Tracking Spreadsheet'!#REF!","v":{"$error":"#REF!"}},{"$f":"'Tracking Spreadsheet'!#REF!","v":{"$error":"#REF!"}},{"$f":"'Tracking Spreadsheet'!#REF!","v":{"$error":"#REF!"}},{"$f":"'Tracking Spreadsheet'!#REF!","v":{"$error":"#REF!"}},null,0,0,{"$f":"'Tracking Spreadsheet'!#REF!","v":{"$error":"#REF!"}}]
[null,{"$f":"'Tracking Spreadsheet'!A20","v":0},{"$f":"'Tracking Spreadsheet'!B20","v":0},{"$f":"'Tracking Spreadsheet'!#REF!","v":{"$error":"#REF!"}},{"$f":"'Tracking Spreadsheet'!#REF!","v":{"$error":"#REF!"}},{"$f":"'Tracking Spreadsheet'!#REF!","v":{"$error":"#REF!"}},{"$f":"'Tracking Spreadsheet'!C20","v":"00:00:00"},{"$f":"'Tracking Spreadsheet'!D20","v":0},{"$f":"'Tracking Spreadsheet'!E20","v":0},{"$f":"'Tracking Spreadsheet'!F20","v":0},null,0,null,null,null,null,null,null,null,null,null,null,null,null,{"$f":"'Tracking Spreadsheet'!#REF!","v":{"$error":"#REF!"}},{"$f":"'Tracking Spreadsheet'!#REF!","v":{"$error":"#REF!"}},{"$f":"'Tracking Spreadsheet'!#REF!","v":{"$error":"#REF!"}},{"$f":"'Tracking Spreadsheet'!#REF!","v":{"$error":"#REF!"}},null,0,0,{"$f":"'Tracking Spreadsheet'!#REF!","v":{"$error":"#REF!"}}]
[null,{"$f":"'Tracking Spreadsheet'!A21","v":0},{"$f":"'Tracking Spreadsheet'!B21","v":0},{"$f":"'Tracking Spreadsheet'!#REF!","v":{"$error":"#REF!"}},{"$f":"'Tracking Spreadsheet'!#REF!","v":{"$error":"#REF!"}},{"$f":"'Tracking Spreadsheet'!#REF!","v":{"$error":"#REF!"}},{"$f":"'Tracking Spreadsheet'!C21","v":"00:00:00"},{"$f":"'Tracking Spreadsheet'!D21","v":0},{"$f":"'Tracking Spreadsheet'!E21","v":0},{"$f":"'Tracking Spreadsheet'!F21","v":0},null,0,null,null,null,null,null,null,null,null,null,null,null,null,{"$f":"'Tracking Spreadsheet'!#REF!","v":{"$error":"#REF!"}},{"$f":"'Tracking Spreadsheet'!#REF!","v":{"$error":"#REF!"}},{"$f":"'Tracking Spreadsheet'!#REF!","v":{"$error":"#REF!"}},{"$f":"'Tracking Spreadsheet'!#REF!","v":{"$error":"#REF!"}},null,0,0,{"$f":"'Tracking Spreadsheet'!#REF!","v":{"$error":"#REF!"}}]
[null,{"$f":"'Tracking Spreadsheet'!A22","v":0},{"$f":"'Tracking Spreadsheet'!B22","v":0},{"$f":"'Tracking Spreadsheet'!#REF!","v":{"$error":"#REF!"}},{"$f":"'Tracking Spreadsheet'!#REF!","v":{"$error":"#REF!"}},{"$f":"'Tracking Spreadsheet'!#REF!","v":{"$error":"#REF!"}},{"$f":"'Tracking Spreadsheet'!C22","v":"00:00:00"},{"$f":"'Tracking Spreadsheet'!D22","v":0},{"$f":"'Tracking Spreadsheet'!E22","v":0},{"$f":"'Tracking Spreadsheet'!F22","v":0},null,0,null,null,null,null,null,null,null,null,null,null,null,null,{"$f":"'Tracking Spreadsheet'!#REF!","v":{"$error":"#REF!"}},{"$f":"'Tracking Spreadsheet'!#REF!","v":{"$error":"#REF!"}},{"$f":"'Tracking Spreadsheet'!#REF!","v":{"$error":"#REF!"}},{"$f":"'Tracking Spreadsheet'!#REF!","v":{"$error":"#REF!"}},null,0,0,{"$f":"'Tracking Spreadsheet'!#REF!","v":{"$error":"#REF!"}}]
[null,{"$f":"'Tracking Spreadsheet'!A23","v":0},{"$f":"'Tracking Spreadsheet'!B23","v":0},{"$f":"'Tracking Spreadsheet'!#REF!","v":{"$error":"#REF!"}},{"$f":"'Tracking Spreadsheet'!#REF!","v":{"$error":"#REF!"}},{"$f":"'Tracking Spreadsheet'!#REF!","v":{"$error":"#REF!"}},{"$f":"'Tracking Spreadsheet'!C23","v":"00:00:00"},{"$f":"'Tracking Spreadsheet'!D23","v":0},{"$f":"'Tracking Spreadsheet'!E23","v":0},{"$f":"'Tracking Spreadsheet'!F23","v":0},null,0,null,null,null,null,null,null,null,null,null,null,null,null,{"$f":"'Tracking Spreadsheet'!#REF!","v":{"$error":"#REF!"}},{"$f":"'Tracking Spreadsheet'!#REF!","v":{"$error":"#REF!"}},{"$f":"'Tracking Spreadsheet'!#REF!","v":{"$error":"#REF!"}},{"$f":"'Tracking Spreadsheet'!#REF!","v":{"$error":"#REF!"}},null,0,0,{"$f":"'Tracking Spreadsheet'!#REF!","v":{"$error":"#REF!"}}]
[null,{"$f":"'Tracking Spreadsheet'!A24","v":0},{"$f":"'Tracking Spreadsheet'!B24","v":0},{"$f":"'Tracking Spreadsheet'!#REF!","v":{"$error":"#REF!"}},{"$f":"'Tracking Spreadsheet'!#REF!","v":{"$error":"#REF!"}},{"$f":"'Tracking Spreadsheet'!#REF!","v":{"$error":"#REF!"}},{"$f":"'Tracking Spreadsheet'!C24","v":"00:00:00"},{"$f":"'Tracking Spreadsheet'!D24","v":0},{"$f":"'Tracking Spreadsheet'!E24","v":0},{"$f":"'Tracking Spreadsheet'!F24","v":0},null,0,null,null,null,null,null,null,null,null,null,null,null,null,{"$f":"'Tracking Spreadsheet'!#REF!","v":{"$error":"#REF!"}},{"$f":"'Tracking Spreadsheet'!#REF!","v":{"$error":"#REF!"}},{"$f":"'Tracking Spreadsheet'!#REF!","v":{"$error":"#REF!"}},{"$f":"'Tracking Spreadsheet'!#REF!","v":{"$error":"#REF!"}},null,0,0,{"$f":"'Tracking Spreadsheet'!#REF!","v":{"$error":"#REF!"}}]
[null,{"$f":"'Tracking Spreadsheet'!A25","v":0},{"$f":"'Tracking Spreadsheet'!B25","v":0},{"$f":"'Tracking Spreadsheet'!#REF!","v":{"$error":"#REF!"}},{"$f":"'Tracking Spreadsheet'!#REF!","v":{"$error":"#REF!"}},{"$f":"'Tracking Spreadsheet'!#REF!","v":{"$error":"#REF!"}},{"$f":"'Tracking Spreadsheet'!C25","v":"00:00:00"},{"$f":"'Tracking Spreadsheet'!D25","v":0},{"$f":"'Tracking Spreadsheet'!E25","v":0},{"$f":"'Tracking Spreadsheet'!F25","v":0},null,0,null,null,null,null,null,null,null,null,null,null,null,null,{"$f":"'Tracking Spreadsheet'!#REF!","v":{"$error":"#REF!"}},{"$f":"'Tracking Spreadsheet'!#REF!","v":{"$error":"#REF!"}},{"$f":"'Tracking Spreadsheet'!#REF!","v":{"$error":"#REF!"}},{"$f":"'Tracking Spreadsheet'!#REF!","v":{"$error":"#REF!"}},null,0,0,{"$f":"'Tracking Spreadsheet'!#REF!","v":{"$error":"#REF!"}}]
[null,{"$f":"'Tracking Spreadsheet'!A26","v":0},{"$f":"'Tracking Spreadsheet'!B26","v":0},{"$f":"'Tracking Spreadsheet'!#REF!","v":{"$error":"#REF!"}},{"$f":"'Tracking Spreadsheet'!#REF!","v":{"$error":"#REF!"}},{"$f":"'Tracking Spreadsheet'!#REF!","v":{"$error":"#REF!"}},{"$f":"'Tracking Spreadsheet'!C26","v":"00:00:00"},{"$f":"'Tracking Spreadsheet'!D26","v":0},{"$f":"'Tracking Spreadsheet'!E26","v":0},{"$f":"'Tracking Spreadsheet'!F26","v":0},null,0,null,null,null,null,null,null,null,null,null,null,null,null,{"$f":"'Tracking Spreadsheet'!#REF!","v":{"$error":"#REF!"}},{"$f":"'Tracking Spreadsheet'!#REF!","v":{"$error":"#REF!"}},{"$f":"'Tracking Spreadsheet'!#REF!","v":{"$error":"#REF!"}},{"$f":"'Tracking Spreadsheet'!#REF!","v":{"$error":"#REF!"}},null,0,0,{"$f":"'Tracking Spreadsheet'!#REF!","v":{"$error":"#REF!"}}]
[null,{"$f":"'Tracking Spreadsheet'!A27","v":0},{"$f":"'Tracking Spreadsheet'!B27","v":0},{"$f":"'Tracking Spreadsheet'!#REF!","v":{"$error":"#REF!"}},{"$f":"'Tracking Spreadsheet'!#REF!","v":{"$error":"#REF!"}},{"$f":"'Tracking Spreadsheet'!#REF!","v":{"$error":"#REF!"}},{"$f":"'Tracking Spreadsheet'!C27","v":"00:00:00"},{"$f":"'Tracking Spreadsheet'!D27","v":0},{"$f":"'Tracking Spreadsheet'!E27","v":0},{"$f":"'Tracking Spreadsheet'!F27","v":0},null,0,null,null,null,null,null,null,null,null,null,null,null,null,{"$f":"'Tracking Spreadsheet'!#REF!","v":{"$error":"#REF!"}},{"$f":"'Tracking Spreadsheet'!#REF!","v":{"$error":"#REF!"}},{"$f":"'Tracking Spreadsheet'!#REF!","v":{"$error":"#REF!"}},{"$f":"'Tracking Spreadsheet'!#REF!","v":{"$error":"#REF!"}},null,0,0,{"$f":"'Tracking Spreadsheet'!#REF!","v":{"$error":"#REF!"}}]
[null,{"$f":"'Tracking Spreadsheet'!A28","v":0},{"$f":"'Tracking Spreadsheet'!B28","v":0},{"$f":"'Tracking Spreadsheet'!#REF!","v":{"$error":"#REF!"}},{"$f":"'Tracking Spreadsheet'!#REF!","v":{"$error":"#REF!"}},{"$f":"'Tracking Spreadsheet'!#REF!","v":{"$error":"#REF!"}},{"$f":"'Tracking Spreadsheet'!C28","v":"00:00:00"},{"$f":"'Tracking Spreadsheet'!D28","v":0},{"$f":"'Tracking Spreadsheet'!E28","v":0},{"$f":"'Tracking Spreadsheet'!F28","v":0},null,0,null,null,null,null,null,null,null,null,null,null,null,null,{"$f":"'Tracking Spreadsheet'!#REF!","v":{"$error":"#REF!"}},{"$f":"'Tracking Spreadsheet'!#REF!","v":{"$error":"#REF!"}},{"$f":"'Tracking Spreadsheet'!#REF!","v":{"$error":"#REF!"}},{"$f":"'Tracking Spreadsheet'!#REF!","v":{"$error":"#REF!"}},null,0,0,{"$f":"'Tracking Spreadsheet'!#REF!","v":{"$error":"#REF!"}}]
[null,{"$f":"'Tracking Spreadsheet'!A29","v":0},{"$f":"'Tracking Spreadsheet'!B29","v":0},{"$f":"'Tracking Spreadsheet'!#REF!","v":{"$error":"#REF!"}},{"$f":"'Tracking Spreadsheet'!#REF!","v":{"$error":"#REF!"}},{"$f":"'Tracking Spreadsheet'!#REF!","v":{"$error":"#REF!"}},{"$f":"'Tracking Spreadsheet'!C29","v":"00:00:00"},{"$f":"'Tracking Spreadsheet'!D29","v":0},{"$f":"'Tracking Spreadsheet'!E29","v":0},{"$f":"'Tracking Spreadsheet'!F29","v":0},null,0,null,null,null,null,null,null,null,null,null,null,null,null,{"$f":"'Tracking Spreadsheet'!#REF!","v":{"$error":"#REF!"}},{"$f":"'Tracking Spreadsheet'!#REF!","v":{"$error":"#REF!"}},{"$f":"'Tracking Spreadsheet'!#REF!","v":{"$error":"#REF!"}},{"$f":"'Tracking Spreadsheet'!#REF!","v":{"$error":"#REF!"}},null,0,0,{"$f":"'Tracking Spreadsheet'!#REF!","v":{"$error":"#REF!"}}]
[null,{"$f":"'Tracking Spreadsheet'!A30","v":0},{"$f":"'Tracking Spreadsheet'!B30","v":0},{"$f":"'Tracking Spreadsheet'!#REF!","v":{"$error":"#REF!"}},{"$f":"'Tracking Spreadsheet'!#REF!","v":{"$error":"#REF!"}},{"$f":"'Tracking Spreadsheet'!#REF!","v":{"$error":"#REF!"}},{"$f":"'Tracking Spreadsheet'!C30","v":"00:00:00"},{"$f":"'Tracking Spreadsheet'!D30","v":0},{"$f":"'Tracking Spreadsheet'!E30","v":0},{"$f":"'Tracking Spreadsheet'!F30","v":0},null,0,null,null,null,null,null,null,null,null,null,null,null,null,{"$f":"'Tracking Spreadsheet'!#REF!","v":{"$error":"#REF!"}},{"$f":"'Tracking Spreadsheet'!#REF!","v":{"$error":"#REF!"}},{"$f":"'Tracking Spreadsheet'!#REF!","v":{"$error":"#REF!"}},{"$f":"'Tracking Spreadsheet'!#REF!","v":{"$error":"#REF!"}},null,0,0,{"$f":"'Tracking Spreadsheet'!#REF!","v":{"$error":"#REF!"}}]
[null,{"$f":"'Tracking Spreadsheet'!A31","v":0},{"$f":"'Tracking Spreadsheet'!B31","v":0},{"$f":"'Tracking Spreadsheet'!#REF!","v":{"$error":"#REF!"}},{"$f":"'Tracking Spreadsheet'!#REF!","v":{"$error":"#REF!"}},{"$f":"'Tracking Spreadsheet'!#REF!","v":{"$error":"#REF!"}},{"$f":"'Tracking Spreadsheet'!C31","v":"00:00:00"},{"$f":"'Tracking Spreadsheet'!D31","v":0},{"$f":"'Tracking Spreadsheet'!E31","v":0},{"$f":"'Tracking Spreadsheet'!F31","v":0},null,0,null,null,null,null,null,null,null,null,null,null,null,null,{"$f":"'Tracking Spreadsheet'!#REF!","v":{"$error":"#REF!"}},{"$f":"'Tracking Spreadsheet'!#REF!","v":{"$error":"#REF!"}},{"$f":"'Tracking Spreadsheet'!#REF!","v":{"$error":"#REF!"}},{"$f":"'Tracking Spreadsheet'!#REF!","v":{"$error":"#REF!"}},null,0,0,{"$f":"'Tracking Spreadsheet'!#REF!","v":{"$error":"#REF!"}}]
[null,{"$f":"'Tracking Spreadsheet'!A32","v":0},{"$f":"'Tracking Spreadsheet'!B32","v":0},{"$f":"'Tracking Spreadsheet'!#REF!","v":{"$error":"#REF!"}},{"$f":"'Tracking Spreadsheet'!#REF!","v":{"$error":"#REF!"}},{"$f":"'Tracking Spreadsheet'!#REF!","v":{"$error":"#REF!"}},{"$f":"'Tracking Spreadsheet'!C32","v":"00:00:00"},{"$f":"'Tracking Spreadsheet'!D32","v":0},{"$f":"'Tracking Spreadsheet'!E32","v":0},{"$f":"'Tracking Spreadsheet'!F32","v":0},null,0,null,null,null,null,null,null,null,null,null,null,null,null,{"$f":"'Tracking Spreadsheet'!#REF!","v":{"$error":"#REF!"}},{"$f":"'Tracking Spreadsheet'!#REF!","v":{"$error":"#REF!"}},{"$f":"'Tracking Spreadsheet'!#REF!","v":{"$error":"#REF!"}},{"$f":"'Tracking Spreadsheet'!#REF!","v":{"$error":"#REF!"}},null,0,0,{"$f":"'Tracking Spreadsheet'!#REF!","v":{"$error":"#REF!"}}]
[null,{"$f":"'Tracking Spreadsheet'!A33","v":0},{"$f":"'Tracking Spreadsheet'!B33","v":0},{"$f":"'Tracking Spreadsheet'!#REF!","v":{"$error":"#REF!"}},{"$f":"'Tracking Spreadsheet'!#REF!","v":{"$error":"#REF!"}},{"$f":"'Tracking Spreadsheet'!#REF!","v":{"$error":"#REF!"}},{"$f":"'Tracking Spreadsheet'!C33","v":"00:00:00"},{"$f":"'Tracking Spreadsheet'!D33","v":0},{"$f":"'Tracking Spreadsheet'!E33","v":0},{"$f":"'Tracking Spreadsheet'!F33","v":0},null,0,null,null,null,null,null,null,null,null,null,null,null,null,{"$f":"'Tracking Spreadsheet'!#REF!","v":{"$error":"#REF!"}},{"$f":"'Tracking Spreadsheet'!#REF!","v":{"$error":"#REF!"}},{"$f":"'Tracking Spreadsheet'!#REF!","v":{"$error":"#REF!"}},{"$f":"'Tracking Spreadsheet'!#REF!","v":{"$error":"#REF!"}},null,0,0,{"$f":"'Tracking Spreadsheet'!#REF!","v":{"$error":"#REF!"}}]
[null,{"$f":"'Tracking Spreadsheet'!A34","v":0},{"$f":"'Tracking Spreadsheet'!B34","v":0},{"$f":"'Tracking Spreadsheet'!#REF!","v":{"$error":"#REF!"}},{"$f":"'Tracking Spreadsheet'!#REF!","v":{"$error":"#REF!"}},{"$f":"'Tracking Spreadsheet'!#REF!","v":{"$error":"#REF!"}},{"$f":"'Tracking Spreadsheet'!C34","v":"00:00:00"},{"$f":"'Tracking Spreadsheet'!D34","v":0},{"$f":"'Tracking Spreadsheet'!E34","v":0},{"$f":"'Tracking Spreadsheet'!F34","v":0},null,0,null,null,null,null,null,null,null,null,null,null,null,null,{"$f":"'Tracking Spreadsheet'!#REF!","v":{"$error":"#REF!"}},{"$f":"'Tracking Spreadsheet'!#REF!","v":{"$error":"#REF!"}},{"$f":"'Tracking Spreadsheet'!#REF!","v":{"$error":"#REF!"}},{"$f":"'Tracking Spreadsheet'!#REF!","v":{"$error":"#REF!"}},null,0,0,{"$f":"'Tracking Spreadsheet'!#REF!","v":{"$error":"#REF!"}}]
[null,{"$f":"'Tracking Spreadsheet'!A35","v":0},{"$f":"'Tracking Spreadsheet'!B35","v":0},{"$f":"'Tracking Spreadsheet'!#REF!","v":{"$error":"#REF!"}},{"$f":"'Tracking Spreadsheet'!#REF!","v":{"$error":"#REF!"}},{"$f":"'Tracking Spreadsheet'!#REF!","v":{"$error":"#REF!"}},{"$f":"'Tracking Spreadsheet'!C35","v":"00:00:00"},{"$f":"'Tracking Spreadsheet'!D35","v":0},{"$f":"'Tracking Spreadsheet'!E35","v":0},{"$f":"'Tracking Spreadsheet'!F35","v":0},null,0,null,null,null,null,null,null,null,null,null,null,null,null,{"$f":"'Tracking Spreadsheet'!#REF!","v":{"$error":"#REF!"}},{"$f":"'Tracking Spreadsheet'!#REF!","v":{"$error":"#REF!"}},{"$f":"'Tracking Spreadsheet'!#REF!","v":{"$error":"#REF!"}},{"$f":"'Tracking Spreadsheet'!#REF!","v":{"$error":"#REF!"}},null,0,0,{"$f":"'Tracking Spreadsheet'!#REF!","v":{"$error":"#REF!"}}]
[null,{"$f":"'Tracking Spreadsheet'!A36","v":0},{"$f":"'Tracking Spreadsheet'!B36","v":0},{"$f":"'Tracking Spreadsheet'!#REF!","v":{"$error":"#REF!"}},{"$f":"'Tracking Spreadsheet'!#REF!","v":{"$error":"#REF!"}},{"$f":"'Tracking Spreadsheet'!#REF!","v":{"$error":"#REF!"}},{"$f":"'Tracking Spreadsheet'!C36","v":"00:00:00"},{"$f":"'Tracking Spreadsheet'!D36","v":0},{"$f":"'Tracking Spreadsheet'!E36","v":0},{"$f":"'Tracking Spreadsheet'!F36","v":0},null,0,null,null,null,null,null,null,null,null,null,null,null,null,{"$f":"'Tracking Spreadsheet'!#REF!","v":{"$error":"#REF!"}},{"$f":"'Tracking Spreadsheet'!#REF!","v":{"$error":"#REF!"}},{"$f":"'Tracking Spreadsheet'!#REF!","v":{"$error":"#REF!"}},{"$f":"'Tracking Spreadsheet'!#REF!","v":{"$error":"#REF!"}},null,0,0,{"$f":"'Tracking Spreadsheet'!#REF!","v":{"$error":"#REF!"}}]
[null,{"$f":"'Tracking Spreadsheet'!A37","v":0},{"$f":"'Tracking Spreadsheet'!B37","v":0},{"$f":"'Tracking Spreadsheet'!#REF!","v":{"$error":"#REF!"}},{"$f":"'Tracking Spreadsheet'!#REF!","v":{"$error":"#REF!"}},{"$f":"'Tracking Spreadsheet'!#REF!","v":{"$error":"#REF!"}},{"$f":"'Tracking Spreadsheet'!C37","v":"00:00:00"},{"$f":"'Tracking Spreadsheet'!D37","v":0},{"$f":"'Tracking Spreadsheet'!E37","v":0},{"$f":"'Tracking Spreadsheet'!F37","v":0},null,0,null,null,null,null,null,null,null,null,null,null,null,null,{"$f":"'Tracking Spreadsheet'!#REF!","v":{"$error":"#REF!"}},{"$f":"'Tracking Spreadsheet'!#REF!","v":{"$error":"#REF!"}},{"$f":"'Tracking Spreadsheet'!#REF!","v":{"$error":"#REF!"}},{"$f":"'Tracking Spreadsheet'!#REF!","v":{"$error":"#REF!"}},null,0,0,{"$f":"'Tracking Spreadsheet'!#REF!","v":{"$error":"#REF!"}}]
[null,{"$f":"'Tracking Spreadsheet'!A38","v":0},{"$f":"'Tracking Spreadsheet'!B38","v":0},{"$f":"'Tracking Spreadsheet'!#REF!","v":{"$error":"#REF!"}},{"$f":"'Tracking Spreadsheet'!#REF!","v":{"$error":"#REF!"}},{"$f":"'Tracking Spreadsheet'!#REF!","v":{"$error":"#REF!"}},{"$f":"'Tracking Spreadsheet'!C38","v":"00:00:00"},{"$f":"'Tracking Spreadsheet'!D38","v":0},{"$f":"'Tracking Spreadsheet'!E38","v":0},{"$f":"'Tracking Spreadsheet'!F38","v":0},null,0,null,null,null,null,null,null,null,null,null,null,null,null,{"$f":"'Tracking Spreadsheet'!#REF!","v":{"$error":"#REF!"}},{"$f":"'Tracking Spreadsheet'!#REF!","v":{"$error":"#REF!"}},{"$f":"'Tracking Spreadsheet'!#REF!","v":{"$error":"#REF!"}},{"$f":"'Tracking Spreadsheet'!#REF!","v":{"$error":"#REF!"}},null,0,0,{"$f":"'Tracking Spreadsheet'!#REF!","v":{"$error":"#REF!"}}]
[null,{"$f":"'Tracking Spreadsheet'!A39","v":0},{"$f":"'Tracking Spreadsheet'!B39","v":0},{"$f":"'Tracking Spreadsheet'!#REF!","v":{"$error":"#REF!"}},{"$f":"'Tracking Spreadsheet'!#REF!","v":{"$error":"#REF!"}},{"$f":"'Tracking Spreadsheet'!#REF!","v":{"$error":"#REF!"}},{"$f":"'Tracking Spreadsheet'!C39","v":"00:00:00"},{"$f":"'Tracking Spreadsheet'!D39","v":0},{"$f":"'Tracking Spreadsheet'!E39","v":0},{"$f":"'Tracking Spreadsheet'!F39","v":0},null,0,null,null,null,null,null,null,null,null,null,null,null,null,{"$f":"'Tracking Spreadsheet'!#REF!","v":{"$error":"#REF!"}},{"$f":"'Tracking Spreadsheet'!#REF!","v":{"$error":"#REF!"}},{"$f":"'Tracking Spreadsheet'!#REF!","v":{"$error":"#REF!"}},{"$f":"'Tracking Spreadsheet'!#REF!","v":{"$error":"#REF!"}},null,0,0,{"$f":"'Tracking Spreadsheet'!#REF!","v":{"$error":"#REF!"}}]
[null,{"$f":"'Tracking Spreadsheet'!A40","v":0},{"$f":"'Tracking Spreadsheet'!B40","v":0},{"$f":"'Tracking Spreadsheet'!#REF!","v":{"$error":"#REF!"}},{"$f":"'Tracking Spreadsheet'!#REF!","v":{"$error":"#REF!"}},{"$f":"'Tracking Spreadsheet'!#REF!","v":{"$error":"#REF!"}},{"$f":"'Tracking Spreadsheet'!C40","v":"00:00:00"},{"$f":"'Tracking Spreadsheet'!D40","v":0},{"$f":"'Tracking Spreadsheet'!E40","v":0},{"$f":"'Tracking Spreadsheet'!F40","v":0},null,0,null,null,null,null,null,null,null,null,null,null,null,null,{"$f":"'Tracking Spreadsheet'!#REF!","v":{"$error":"#REF!"}},{"$f":"'Tracking Spreadsheet'!#REF!","v":{"$error":"#REF!"}},{"$f":"'Tracking Spreadsheet'!#REF!","v":{"$error":"#REF!"}},{"$f":"'Tracking Spreadsheet'!#REF!","v":{"$error":"#REF!"}},null,0,0,{"$f":"'Tracking Spreadsheet'!#REF!","v":{"$error":"#REF!"}}]
[null,{"$f":"'Tracking Spreadsheet'!A41","v":0},{"$f":"'Tracking Spreadsheet'!B41","v":0},{"$f":"'Tracking Spreadsheet'!#REF!","v":{"$error":"#REF!"}},{"$f":"'Tracking Spreadsheet'!#REF!","v":{"$error":"#REF!"}},{"$f":"'Tracking Spreadsheet'!#REF!","v":{"$error":"#REF!"}},{"$f":"'Tracking Spreadsheet'!C41","v":"00:00:00"},{"$f":"'Tracking Spreadsheet'!D41","v":0},{"$f":"'Tracking Spreadsheet'!E41","v":0},{"$f":"'Tracking Spreadsheet'!F41","v":0},null,0,null,null,null,null,null,null,null,null,null,null,null,null,{"$f":"'Tracking Spreadsheet'!#REF!","v":{"$error":"#REF!"}},{"$f":"'Tracking Spreadsheet'!#REF!","v":{"$error":"#REF!"}},{"$f":"'Tracking Spreadsheet'!#REF!","v":{"$error":"#REF!"}},{"$f":"'Tracking Spreadsheet'!#REF!","v":{"$error":"#REF!"}},null,0,0,{"$f":"'Tracking Spreadsheet'!#REF!","v":{"$error":"#REF!"}}]
[null,{"$f":"'Tracking Spreadsheet'!A42","v":0},{"$f":"'Tracking Spreadsheet'!B42","v":0},{"$f":"'Tracking Spreadsheet'!#REF!","v":{"$error":"#REF!"}},{"$f":"'Tracking Spreadsheet'!#REF!","v":{"$error":"#REF!"}},{"$f":"'Tracking Spreadsheet'!#REF!","v":{"$error":"#REF!"}},{"$f":"'Tracking Spreadsheet'!C42","v":"00:00:00"},{"$f":"'Tracking Spreadsheet'!D42","v":0},{"$f":"'Tracking Spreadsheet'!E42","v":0},{"$f":"'Tracking Spreadsheet'!F42","v":0},null,0,null,null,null,null,null,null,null,null,null,null,null,null,{"$f":"'Tracking Spreadsheet'!#REF!","v":{"$error":"#REF!"}},{"$f":"'Tracking Spreadsheet'!#REF!","v":{"$error":"#REF!"}},{"$f":"'Tracking Spreadsheet'!#REF!","v":{"$error":"#REF!"}},{"$f":"'Tracking Spreadsheet'!#REF!","v":{"$error":"#REF!"}},null,0,0,{"$f":"'Tracking Spreadsheet'!#REF!","v":{"$error":"#REF!"}}]
[null,{"$f":"'Tracking Spreadsheet'!A43","v":0},{"$f":"'Tracking Spreadsheet'!B43","v":0},{"$f":"'Tracking Spreadsheet'!#REF!","v":{"$error":"#REF!"}},{"$f":"'Tracking Spreadsheet'!#REF!","v":{"$error":"#REF!"}},{"$f":"'Tracking Spreadsheet'!#REF!","v":{"$error":"#REF!"}},{"$f":"'Tracking Spreadsheet'!C43","v":"00:00:00"},{"$f":"'Tracking Spreadsheet'!D43","v":0},{"$f":"'Tracking Spreadsheet'!E43","v":0},{"$f":"'Tracking Spreadsheet'!F43","v":0},null,0,null,null,null,null,null,null,null,null,null,null,null,null,{"$f":"'Tracking Spreadsheet'!#REF!","v":{"$error":"#REF!"}},{"$f":"'Tracking Spreadsheet'!#REF!","v":{"$error":"#REF!"}},{"$f":"'Tracking Spreadsheet'!#REF!","v":{"$error":"#REF!"}},{"$f":"'Tracking Spreadsheet'!#REF!","v":{"$error":"#REF!"}},null,0,0,{"$f":"'Tracking Spreadsheet'!#REF!","v":{"$error":"#REF!"}}]
[null,{"$f":"'Tracking Spreadsheet'!A44","v":0},{"$f":"'Tracking Spreadsheet'!B44","v":0},{"$f":"'Tracking Spreadsheet'!#REF!","v":{"$error":"#REF!"}},{"$f":"'Tracking Spreadsheet'!#REF!","v":{"$error":"#REF!"}},{"$f":"'Tracking Spreadsheet'!#REF!","v":{"$error":"#REF!"}},{"$f":"'Tracking Spreadsheet'!C44","v":"00:00:00"},{"$f":"'Tracking Spreadsheet'!D44","v":0},{"$f":"'Tracking Spreadsheet'!E44","v":0},{"$f":"'Tracking Spreadsheet'!F44","v":0},null,0,null,null,null,null,null,null,null,null,null,null,null,null,{"$f":"'Tracking Spreadsheet'!#REF!","v":{"$error":"#REF!"}},{"$f":"'Tracking Spreadsheet'!#REF!","v":{"$error":"#REF!"}},{"$f":"'Tracking Spreadsheet'!#REF!","v":{"$error":"#REF!"}},{"$f":"'Tracking Spreadsheet'!#REF!","v":{"$error":"#REF!"}},null,0,0,{"$f":"'Tracking Spreadsheet'!#REF!","v":{"$error":"#REF!"}}]
[null,{"$f":"'Tracking Spreadsheet'!A45","v":0},{"$f":"'Tracking Spreadsheet'!B45","v":0},{"$f":"'Tracking Spreadsheet'!#REF!","v":{"$error":"#REF!"}},{"$f":"'Tracking Spreadsheet'!#REF!","v":{"$error":"#REF!"}},{"$f":"'Tracking Spreadsheet'!#REF!","v":{"$error":"#REF!"}},{"$f":"'Tracking Spreadsheet'!C45","v":"00:00:00"},{"$f":"'Tracking Spreadsheet'!D45","v":0},{"$f":"'Tracking Spreadsheet'!E45","v":0},{"$f":"'Tracking Spreadsheet'!F45","v":0},null,0,null,null,null,null,null,null,null,null,null,null,null,null,{"$f":"'Tracking Spreadsheet'!#REF!","v":{"$error":"#REF!"}},{"$f":"'Tracking Spreadsheet'!#REF!","v":{"$error":"#REF!"}},{"$f":"'Tracking Spreadsheet'!#REF!","v":{"$error":"#REF!"}},{"$f":"'Tracking Spreadsheet'!#REF!","v":{"$error":"#REF!"}},null,0,0,{"$f":"'Tracking Spreadsheet'!#REF!","v":{"$error":"#REF!"}}]
[null,{"$f":"'Tracking Spreadsheet'!A46","v":0},{"$f":"'Tracking Spreadsheet'!B46","v":0},{"$f":"'Tracking Spreadsheet'!#REF!","v":{"$error":"#REF!"}},{"$f":"'Tracking Spreadsheet'!#REF!","v":{"$error":"#REF!"}},{"$f":"'Tracking Spreadsheet'!#REF!","v":{"$error":"#REF!"}},{"$f":"'Tracking Spreadsheet'!C46","v":"00:00:00"},{"$f":"'Tracking Spreadsheet'!D46","v":0},{"$f":"'Tracking Spreadsheet'!E46","v":0},{"$f":"'Tracking Spreadsheet'!F46","v":0},null,0,null,null,null,null,null,null,null,null,null,null,null,null,{"$f":"'Tracking Spreadsheet'!#REF!","v":{"$error":"#REF!"}},{"$f":"'Tracking Spreadsheet'!#REF!","v":{"$error":"#REF!"}},{"$f":"'Tracking Spreadsheet'!#REF!","v":{"$error":"#REF!"}},{"$f":"'Tracking Spreadsheet'!#REF!","v":{"$error":"#REF!"}},null,0,0,{"$f":"'Tracking Spreadsheet'!#REF!","v":{"$error":"#REF!"}}]
[null,{"$f":"'Tracking Spreadsheet'!A47","v":0},{"$f":"'Tracking Spreadsheet'!B47","v":0},{"$f":"'Tracking Spreadsheet'!#REF!","v":{"$error":"#REF!"}},{"$f":"'Tracking Spreadsheet'!#REF!","v":{"$error":"#REF!"}},{"$f":"'Tracking Spreadsheet'!#REF!","v":{"$error":"#REF!"}},{"$f":"'Tracking Spreadsheet'!C47","v":"00:00:00"},{"$f":"'Tracking Spreadsheet'!D47","v":0},{"$f":"'Tracking Spreadsheet'!E47","v":0},{"$f":"'Tracking Spreadsheet'!F47","v":0},null,0,null,null,null,null,null,null,null,null,null,null,null,null,{"$f":"'Tracking Spreadsheet'!#REF!","v":{"$error":"#REF!"}},{"$f":"'Tracking Spreadsheet'!#REF!","v":{"$error":"#REF!"}},{"$f":"'Tracking Spreadsheet'!#REF!","v":{"$error":"#REF!"}},{"$f":"'Tracking Spreadsheet'!#REF!","v":{"$error":"#REF!"}},null,0,0,{"$f":"'Tracking Spreadsheet'!#REF!","v":{"$error":"#REF!"}}]
[null,{"$f":"'Tracking Spreadsheet'!A48","v":0},{"$f":"'Tracking Spreadsheet'!B48","v":0},{"$f":"'Tracking Spreadsheet'!#REF!","v":{"$error":"#REF!"}},{"$f":"'Tracking Spreadsheet'!#REF!","v":{"$error":"#REF!"}},{"$f":"'Tracking Spreadsheet'!#REF!","v":{"$error":"#REF!"}},{"$f":"'Tracking Spreadsheet'!C48","v":"00:00:00"},{"$f":"'Tracking Spreadsheet'!D48","v":0},{"$f":"'Tracking Spreadsheet'!E48","v":0},{"$f":"'Tracking Spreadsheet'!F48","v":0},null,0,null,null,null,null,null,null,null,null,null,null,null,null,{"$f":"'Tracking Spreadsheet'!#REF!","v":{"$error":"#REF!"}},{"$f":"'Tracking Spreadsheet'!#REF!","v":{"$error":"#REF!"}},{"$f":"'Tracking Spreadsheet'!#REF!","v":{"$error":"#REF!"}},{"$f":"'Tracking Spreadsheet'!#REF!","v":{"$error":"#REF!"}},null,0,0,{"$f":"'Tracking Spreadsheet'!#REF!","v":{"$error":"#REF!"}}]
[null,{"$f":"'Tracking Spreadsheet'!A49","v":0},{"$f":"'Tracking Spreadsheet'!B49","v":0},{"$f":"'Tracking Spreadsheet'!#REF!","v":{"$error":"#REF!"}},{"$f":"'Tracking Spreadsheet'!#REF!","v":{"$error":"#REF!"}},{"$f":"'Tracking Spreadsheet'!#REF!","v":{"$error":"#REF!"}},{"$f":"'Tracking Spreadsheet'!C49","v":"00:00:00"},{"$f":"'Tracking Spreadsheet'!D49","v":0},{"$f":"'Tracking Spreadsheet'!E49","v":0},{"$f":"'Tracking Spreadsheet'!F49","v":0},null,0,null,null,null,null,null,null,null,null,null,null,null,null,{"$f":"'Tracking Spreadsheet'!#REF!","v":{"$error":"#REF!"}},{"$f":"'Tracking Spreadsheet'!#REF!","v":{"$error":"#REF!"}},{"$f":"'Tracking Spreadsheet'!#REF!","v":{"$error":"#REF!"}},{"$f":"'Tracking Spreadsheet'!#REF!","v":{"$error":"#REF!"}},null,0,0,{"$f":"'Tracking Spreadsheet'!#REF!","v":{"$error":"#REF!"}}]
[null,{"$f":"'Tracking Spreadsheet'!A50","v":0},{"$f":"'Tracking Spreadsheet'!B50","v":0},{"$f":"'Tracking Spreadsheet'!#REF!","v":{"$error":"#REF!"}},{"$f":"'Tracking Spreadsheet'!#REF!","v":{"$error":"#REF!"}},{"$f":"'Tracking Spreadsheet'!#REF!","v":{"$error":"#REF!"}},{"$f":"'Tracking Spreadsheet'!C50","v":"00:00:00"},{"$f":"'Tracking Spreadsheet'!D50","v":0},{"$f":"'Tracking Spreadsheet'!E50","v":0},{"$f":"'Tracking Spreadsheet'!F50","v":0},null,0,null,null,null,null,null,null,null,null,null,null,null,null,{"$f":"'Tracking Spreadsheet'!#REF!","v":{"$error":"#REF!"}},{"$f":"'Tracking Spreadsheet'!#REF!","v":{"$error":"#REF!"}},{"$f":"'Tracking Spreadsheet'!#REF!","v":{"$error":"#REF!"}},{"$f":"'Tracking Spreadsheet'!#REF!","v":{"$error":"#REF!"}},null,0,0,{"$f":"'Tracking Spreadsheet'!#REF!","v":{"$error":"#REF!"}}]
[null,{"$f":"'Tracking Spreadsheet'!A51","v":0},{"$f":"'Tracking Spreadsheet'!B51","v":0},{"$f":"'Tracking Spreadsheet'!#REF!","v":{"$error":"#REF!"}},{"$f":"'Tracking Spreadsheet'!#REF!","v":{"$error":"#REF!"}},{"$f":"'Tracking Spreadsheet'!#REF!","v":{"$error":"#REF!"}},{"$f":"'Tracking Spreadsheet'!C51","v":"00:00:00"},{"$f":"'Tracking Spreadsheet'!D51","v":0},{"$f":"'Tracking Spreadsheet'!E51","v":0},{"$f":"'Tracking Spreadsheet'!F51","v":0},null,0,null,null,null,null,null,null,null,null,null,null,null,null,{"$f":"'Tracking Spreadsheet'!#REF!","v":{"$error":"#REF!"}},{"$f":"'Tracking Spreadsheet'!#REF!","v":{"$error":"#REF!"}},{"$f":"'Tracking Spreadsheet'!#REF!","v":{"$error":"#REF!"}},{"$f":"'Tracking Spreadsheet'!#REF!","v":{"$error":"#REF!"}},null,0,0,{"$f":"'Tracking Spreadsheet'!#REF!","v":{"$error":"#REF!"}}]
[null,{"$f":"'Tracking Spreadsheet'!A52","v":0},{"$f":"'Tracking Spreadsheet'!B52","v":0},{"$f":"'Tracking Spreadsheet'!#REF!","v":{"$error":"#REF!"}},{"$f":"'Tracking Spreadsheet'!#REF!","v":{"$error":"#REF!"}},{"$f":"'Tracking Spreadsheet'!#REF!","v":{"$error":"#REF!"}},{"$f":"'Tracking Spreadsheet'!C52","v":"00:00:00"},{"$f":"'Tracking Spreadsheet'!D52","v":0},{"$f":"'Tracking Spreadsheet'!E52","v":0},{"$f":"'Tracking Spreadsheet'!F52","v":0},null,0,null,null,null,null,null,null,null,null,null,null,null,null,{"$f":"'Tracking Spreadsheet'!#REF!","v":{"$error":"#REF!"}},{"$f":"'Tracking Spreadsheet'!#REF!","v":{"$error":"#REF!"}},{"$f":"'Tracking Spreadsheet'!#REF!","v":{"$error":"#REF!"}},{"$f":"'Tracking Spreadsheet'!#REF!","v":{"$error":"#REF!"}},null,0,0,{"$f":"'Tracking Spreadsheet'!#REF!","v":{"$error":"#REF!"}}]
[null,{"$f":"'Tracking Spreadsheet'!A53","v":0},{"$f":"'Tracking Spreadsheet'!B53","v":0},{"$f":"'Tracking Spreadsheet'!#REF!","v":{"$error":"#REF!"}},{"$f":"'Tracking Spreadsheet'!#REF!","v":{"$error":"#REF!"}},{"$f":"'Tracking Spreadsheet'!#REF!","v":{"$error":"#REF!"}},{"$f":"'Tracking Spreadsheet'!C53","v":"00:00:00"},{"$f":"'Tracking Spreadsheet'!D53","v":0},{"$f":"'Tracking Spreadsheet'!E53","v":0},{"$f":"'Tracking Spreadsheet'!F53","v":0},null,0,null,null,null,null,null,null,null,null,null,null,null,null,{"$f":"'Tracking Spreadsheet'!#REF!","v":{"$error":"#REF!"}},{"$f":"'Tracking Spreadsheet'!#REF!","v":{"$error":"#REF!"}},{"$f":"'Tracking Spreadsheet'!#REF!","v":{"$error":"#REF!"}},{"$f":"'Tracking Spreadsheet'!#REF!","v":{"$error":"#REF!"}},null,0,0,{"$f":"'Tracking Spreadsheet'!#REF!","v":{"$error":"#REF!"}}]
[null,{"$f":"'Tracking Spreadsheet'!A54","v":0},{"$f":"'Tracking Spreadsheet'!B54","v":0},{"$f":"'Tracking Spreadsheet'!#REF!","v":{"$error":"#REF!"}},{"$f":"'Tracking Spreadsheet'!#REF!","v":{"$error":"#REF!"}},{"$f":"'Tracking Spreadsheet'!#REF!","v":{"$error":"#REF!"}},{"$f":"'Tracking Spreadsheet'!C54","v":"00:00:00"},{"$f":"'Tracking Spreadsheet'!D54","v":0},{"$f":"'Tracking Spreadsheet'!E54","v":0},{"$f":"'Tracking Spreadsheet'!F54","v":0},null,0,null,null,null,null,null,null,null,null,null,null,null,null,{"$f":"'Tracking Spreadsheet'!#REF!","v":{"$error":"#REF!"}},{"$f":"'Tracking Spreadsheet'!#REF!","v":{"$error":"#REF!"}},{"$f":"'Tracking Spreadsheet'!#REF!","v":{"$error":"#REF!"}},{"$f":"'Tracking Spreadsheet'!#REF!","v":{"$error":"#REF!"}},null,0,0,{"$f":"'Tracking Spreadsheet'!#REF!","v":{"$error":"#REF!"}}]
[null,{"$f":"'Tracking Spreadsheet'!A55","v":0},{"$f":"'Tracking Spreadsheet'!B55","v":0},{"$f":"'Tracking Spreadsheet'!#REF!","v":{"$error":"#REF!"}},{"$f":"'Tracking Spreadsheet'!#REF!","v":{"$error":"#REF!"}},{"$f":"'Tracking Spreadsheet'!#REF!","v":{"$error":"#REF!"}},{"$f":"'Tracking Spreadsheet'!C55","v":"00:00:00"},{"$f":"'Tracking Spreadsheet'!D55","v":0},{"$f":"'Tracking Spreadsheet'!E55","v":0},{"$f":"'Tracking Spreadsheet'!F55","v":0},null,0,null,null,null,null,null,null,null,null,null,null,null,null,{"$f":"'Tracking Spreadsheet'!#REF!","v":{"$error":"#REF!"}},{"$f":"'Tracking Spreadsheet'!#REF!","v":{"$error":"#REF!"}},{"$f":"'Tracking Spreadsheet'!#REF!","v":{"$error":"#REF!"}},{"$f":"'Tracking Spreadsheet'!#REF!","v":{"$error":"#REF!"}},null,0,0,{"$f":"'Tracking Spreadsheet'!#REF!","v":{"$error":"#REF!"}}]
[null,{"$f":"'Tracking Spreadsheet'!A56","v":0},{"$f":"'Tracking Spreadsheet'!B56","v":0},{"$f":"'Tracking Spreadsheet'!#REF!","v":{"$error":"#REF!"}},{"$f":"'Tracking Spreadsheet'!#REF!","v":{"$error":"#REF!"}},{"$f":"'Tracking Spreadsheet'!#REF!","v":{"$error":"#REF!"}},{"$f":"'Tracking Spreadsheet'!C56","v":"00:00:00"},{"$f":"'Tracking Spreadsheet'!D56","v":0},{"$f":"'Tracking Spreadsheet'!E56","v":0},{"$f":"'Tracking Spreadsheet'!F56","v":0},null,0,null,null,null,null,null,null,null,null,null,null,null,null,{"$f":"'Tracking Spreadsheet'!#REF!","v":{"$error":"#REF!"}},{"$f":"'Tracking Spreadsheet'!#REF!","v":{"$error":"#REF!"}},{"$f":"'Tracking Spreadsheet'!#REF!","v":{"$error":"#REF!"}},{"$f":"'Tracking Spreadsheet'!#REF!","v":{"$error":"#REF!"}},null,0,0,{"$f":"'Tracking Spreadsheet'!#REF!","v":{"$error":"#REF!"}}]
[null,{"$f":"'Tracking Spreadsheet'!A57","v":0},{"$f":"'Tracking Spreadsheet'!B57","v":0},{"$f":"'Tracking Spreadsheet'!#REF!","v":{"$error":"#REF!"}},{"$f":"'Tracking Spreadsheet'!#REF!","v":{"$error":"#REF!"}},{"$f":"'Tracking Spreadsheet'!#REF!","v":{"$error":"#REF!"}},{"$f":"'Tracking Spreadsheet'!C57","v":"00:00:00"},{"$f":"'Tracking Spreadsheet'!D57","v":0},{"$f":"'Tracking Spreadsheet'!E57","v":0},{"$f":"'Tracking Spreadsheet'!F57","v":0},null,0,null,null,null,null,null,null,null,null,null,null,null,null,{"$f":"'Tracking Spreadsheet'!#REF!","v":{"$error":"#REF!"}},{"$f":"'Tracking Spreadsheet'!#REF!","v":{"$error":"#REF!"}},{"$f":"'Tracking Spreadsheet'!#REF!","v":{"$error":"#REF!"}},{"$f":"'Tracking Spreadsheet'!#REF!","v":{"$error":"#REF!"}},null,0,0,{"$f":"'Tracking Spreadsheet'!#REF!","v":{"$error":"#REF!"}}]
[null,{"$f":"'Tracking Spreadsheet'!A58","v":0},{"$f":"'Tracking Spreadsheet'!B58","v":0},{"$f":"'Tracking Spreadsheet'!#REF!","v":{"$error":"#REF!"}},{"$f":"'Tracking Spreadsheet'!#REF!","v":{"$error":"#REF!"}},{"$f":"'Tracking Spreadsheet'!#REF!","v":{"$error":"#REF!"}},{"$f":"'Tracking Spreadsheet'!C58","v":"00:00:00"},{"$f":"'Tracking Spreadsheet'!D58","v":0},{"$f":"'Tracking Spreadsheet'!E58","v":0},{"$f":"'Tracking Spreadsheet'!F58","v":0},null,0,null,null,null,null,null,null,null,null,null,null,null,null,{"$f":"'Tracking Spreadsheet'!#REF!","v":{"$error":"#REF!"}},{"$f":"'Tracking Spreadsheet'!#REF!","v":{"$error":"#REF!"}},{"$f":"'Tracking Spreadsheet'!#REF!","v":{"$error":"#REF!"}},{"$f":"'Tracking Spreadsheet'!#REF!","v":{"$error":"#REF!"}},null,0,0,{"$f":"'Tracking Spreadsheet'!#REF!","v":{"$error":"#REF!"}}]
[null,{"$f":"'Tracking Spreadsheet'!A59","v":0},{"$f":"'Tracking Spreadsheet'!B59","v":0},{"$f":"'Tracking Spreadsheet'!#REF!","v":{"$error":"#REF!"}},{"$f":"'Tracking Spreadsheet'!#REF!","v":{"$error":"#REF!"}},{"$f":"'Tracking Spreadsheet'!#REF!","v":{"$error":"#REF!"}},{"$f":"'Tracking Spreadsheet'!C59","v":"00:00:00"},{"$f":"'Tracking Spreadsheet'!D59","v":0},{"$f":"'Tracking Spreadsheet'!E59","v":0},{"$f":"'Tracking Spreadsheet'!F59","v":0},null,0,null,null,null,null,null,null,null,null,null,null,null,null,{"$f":"'Tracking Spreadsheet'!#REF!","v":{"$error":"#REF!"}},{"$f":"'Tracking Spreadsheet'!#REF!","v":{"$error":"#REF!"}},{"$f":"'Tracking Spreadsheet'!#REF!","v":{"$error":"#REF!"}},{"$f":"'Tracking Spreadsheet'!#REF!","v":{"$error":"#REF!"}},null,0,0,{"$f":"'Tracking Spreadsheet'!#REF!","v":{"$error":"#REF!"}}]
[null,{"$f":"'Tracking Spreadsheet'!A60","v":0},{"$f":"'Tracking Spreadsheet'!B60","v":0},{"$f":"'Tracking Spreadsheet'!#REF!","v":{"$error":"#REF!"}},{"$f":"'Tracking Spreadsheet'!#REF!","v":{"$error":"#REF!"}},{"$f":"'Tracking Spreadsheet'!#REF!","v":{"$error":"#REF!"}},{"$f":"'Tracking Spreadsheet'!C60","v":"00:00:00"},{"$f":"'Tracking Spreadsheet'!D60","v":0},{"$f":"'Tracking Spreadsheet'!E60","v":0},{"$f":"'Tracking Spreadsheet'!F60","v":0},null,0,null,null,null,null,null,null,null,null,null,null,null,null,{"$f":"'Tracking Spreadsheet'!#REF!","v":{"$error":"#REF!"}},{"$f":"'Tracking Spreadsheet'!#REF!","v":{"$error":"#REF!"}},{"$f":"'Tracking Spreadsheet'!#REF!","v":{"$error":"#REF!"}},{"$f":"'Tracking Spreadsheet'!#REF!","v":{"$error":"#REF!"}},null,0,0,{"$f":"'Tracking Spreadsheet'!#REF!","v":{"$error":"#REF!"}}]
[null,{"$f":"'Tracking Spreadsheet'!A61","v":0},{"$f":"'Tracking Spreadsheet'!B61","v":0},{"$f":"'Tracking Spreadsheet'!#REF!","v":{"$error":"#REF!"}},{"$f":"'Tracking Spreadsheet'!#REF!","v":{"$error":"#REF!"}},{"$f":"'Tracking Spreadsheet'!#REF!","v":{"$error":"#REF!"}},{"$f":"'Tracking Spreadsheet'!C61","v":"00:00:00"},{"$f":"'Tracking Spreadsheet'!D61","v":0},{"$f":"'Tracking Spreadsheet'!E61","v":0},{"$f":"'Tracking Spreadsheet'!F61","v":0},null,0,null,null,null,null,null,null,null,null,null,null,null,null,{"$f":"'Tracking Spreadsheet'!#REF!","v":{"$error":"#REF!"}},{"$f":"'Tracking Spreadsheet'!#REF!","v":{"$error":"#REF!"}},{"$f":"'Tracking Spreadsheet'!#REF!","v":{"$error":"#REF!"}},{"$f":"'Tracking Spreadsheet'!#REF!","v":{"$error":"#REF!"}},null,0,0,{"$f":"'Tracking Spreadsheet'!#REF!","v":{"$error":"#REF!"}}]
[null,{"$f":"'Tracking Spreadsheet'!A62","v":0},{"$f":"'Tracking Spreadsheet'!B62","v":0},{"$f":"'Tracking Spreadsheet'!#REF!","v":{"$error":"#REF!"}},{"$f":"'Tracking Spreadsheet'!#REF!","v":{"$error":"#REF!"}},{"$f":"'Tracking Spreadsheet'!#REF!","v":{"$error":"#REF!"}},{"$f":"'Tracking Spreadsheet'!C62","v":"00:00:00"},{"$f":"'Tracking Spreadsheet'!D62","v":0},{"$f":"'Tracking Spreadsheet'!E62","v":0},{"$f":"'Tracking Spreadsheet'!F62","v":0},null,0,null,null,null,null,null,null,null,null,null,null,null,null,{"$f":"'Tracking Spreadsheet'!#REF!","v":{"$error":"#REF!"}},{"$f":"'Tracking Spreadsheet'!#REF!","v":{"$error":"#REF!"}},{"$f":"'Tracking Spreadsheet'!#REF!","v":{"$error":"#REF!"}},{"$f":"'Tracking Spreadsheet'!#REF!","v":{"$error":"#REF!"}},null,0,0,{"$f":"'Tracking Spreadsheet'!#REF!","v":{"$error":"#REF!"}}]
[null,{"$f":"'Tracking Spreadsheet'!A63","v":0},{"$f":"'Tracking Spreadsheet'!B63","v":0},{"$f":"'Tracking Spreadsheet'!#REF!","v":{"$error":"#REF!"}},{"$f":"'Tracking Spreadsheet'!#REF!","v":{"$error":"#REF!"}},{"$f":"'Tracking Spreadsheet'!#REF!","v":{"$error":"#REF!"}},{"$f":"'Tracking Spreadsheet'!C63","v":"00:00:00"},{"$f":"'Tracking Spreadsheet'!D63","v":0},{"$f":"'Tracking Spreadsheet'!E63","v":0},{"$f":"'Tracking Spreadsheet'!F63","v":0},null,0,null,null,null,null,null,null,null,null,null,null,null,null,{"$f":"'Tracking Spreadsheet'!#REF!","v":{"$error":"#REF!"}},{"$f":"'Tracking Spreadsheet'!#REF!","v":{"$error":"#REF!"}},{"$f":"'Tracking Spreadsheet'!#REF!","v":{"$error":"#REF!"}},{"$f":"'Tracking Spreadsheet'!#REF!","v":{"$error":"#REF!"}},null,0,0,{"$f":"'Tracking Spreadsheet'!#REF!","v":{"$error":"#REF!"}}]
[null,{"$f":"'Tracking Spreadsheet'!A64","v":0},{"$f":"'Tracking Spreadsheet'!B64","v":0},{"$f":"'Tracking Spreadsheet'!#REF!","v":{"$error":"#REF!"}},{"$f":"'Tracking Spreadsheet'!#REF!","v":{"$error":"#REF!"}},{"$f":"'Tracking Spreadsheet'!#REF!","v":{"$error":"#REF!"}},{"$f":"'Tracking Spreadsheet'!C64","v":"00:00:00"},{"$f":"'Tracking Spreadsheet'!D64","v":0},{"$f":"'Tracking Spreadsheet'!E64","v":0},{"$f":"'Tracking Spreadsheet'!F64","v":0},null,0,null,null,null,null,null,null,null,null,null,null,null,null,{"$f":"'Tracking Spreadsheet'!#REF!","v":{"$error":"#REF!"}},{"$f":"'Tracking Spreadsheet'!#REF!","v":{"$error":"#REF!"}},{"$f":"'Tracking Spreadsheet'!#REF!","v":{"$error":"#REF!"}},{"$f":"'Tracking Spreadsheet'!#REF!","v":{"$error":"#REF!"}},null,0,0,{"$f":"'Tracking Spreadsheet'!#REF!","v":{"$error":"#REF!"}}]
[null,{"$f":"'Tracking Spreadsheet'!A65","v":0},{"$f":"'Tracking Spreadsheet'!B65","v":0},{"$f":"'Tracking Spreadsheet'!#REF!","v":{"$error":"#REF!"}},{"$f":"'Tracking Spreadsheet'!#REF!","v":{"$error":"#REF!"}},{"$f":"'Tracking Spreadsheet'!#REF!","v":{"$error":"#REF!"}},{"$f":"'Tracking Spreadsheet'!C65","v":"00:00:00"},{"$f":"'Tracking Spreadsheet'!D65","v":0},{"$f":"'Tracking Spreadsheet'!E65","v":0},{"$f":"'Tracking Spreadsheet'!F65","v":0},null,0,null,null,null,null,null,null,null,null,null,null,null,null,{"$f":"'Tracking Spreadsheet'!#REF!","v":{"$error":"#REF!"}},{"$f":"'Tracking Spreadsheet'!#REF!","v":{"$error":"#REF!"}},{"$f":"'Tracking Spreadsheet'!#REF!","v":{"$error":"#REF!"}},{"$f":"'Tracking Spreadsheet'!#REF!","v":{"$error":"#REF!"}},null,0,0,{"$f":"'Tracking Spreadsheet'!#REF!","v":{"$error":"#REF!"}}]
[null,{"$f":"'Tracking Spreadsheet'!A66","v":0},{"$f":"'Tracking Spreadsheet'!B66","v":0},{"$f":"'Tracking Spreadsheet'!#REF!","v":{"$error":"#REF!"}},{"$f":"'Tracking Spreadsheet'!#REF!","v":{"$error":"#REF!"}},{"$f":"'Tracking Spreadsheet'!#REF!","v":{"$error":"#REF!"}},{"$f":"'Tracking Spreadsheet'!C66","v":"00:00:00"},{"$f":"'Tracking Spreadsheet'!D66","v":0},{"$f":"'Tracking Spreadsheet'!E66","v":0},{"$f":"'Tracking Spreadsheet'!F66","v":0},null,0,null,null,null,null,null,null,null,null,null,null,null,null,{"$f":"'Tracking Spreadsheet'!#REF!","v":{"$error":"#REF!"}},{"$f":"'Tracking Spreadsheet'!#REF!","v":{"$error":"#REF!"}},{"$f":"'Tracking Spreadsheet'!#REF!","v":{"$error":"#REF!"}},{"$f":"'Tracking Spreadsheet'!#REF!","v":{"$error":"#REF!"}},null,0,0,{"$f":"'Tracking Spreadsheet'!#REF!","v":{"$error":"#REF!"}}]
[null,{"$f":"'Tracking Spreadsheet'!A67","v":0},{"$f":"'Tracking Spreadsheet'!B67","v":0},{"$f":"'Tracking Spreadsheet'!#REF!","v":{"$error":"#REF!"}},{"$f":"'Tracking Spreadsheet'!#REF!","v":{"$error":"#REF!"}},{"$f":"'Tracking Spreadsheet'!#REF!","v":{"$error":"#REF!"}},{"$f":"'Tracking Spreadsheet'!C67","v":"00:00:00"},{"$f":"'Tracking Spreadsheet'!D67","v":0},{"$f":"'Tracking Spreadsheet'!E67","v":0},{"$f":"'Tracking Spreadsheet'!F67","v":0},null,0,null,null,null,null,null,null,null,null,null,null,null,null,{"$f":"'Tracking Spreadsheet'!#REF!","v":{"$error":"#REF!"}},{"$f":"'Tracking Spreadsheet'!#REF!","v":{"$error":"#REF!"}},{"$f":"'Tracking Spreadsheet'!#REF!","v":{"$error":"#REF!"}},{"$f":"'Tracking Spreadsheet'!#REF!","v":{"$error":"#REF!"}},null,0,0,{"$f":"'Tracking Spreadsheet'!#REF!","v":{"$error":"#REF!"}}]
[null,{"$f":"'Tracking Spreadsheet'!A68","v":0},{"$f":"'Tracking Spreadsheet'!B68","v":0},{"$f":"'Tracking Spreadsheet'!#REF!","v":{"$error":"#REF!"}},{"$f":"'Tracking Spreadsheet'!#REF!","v":{"$error":"#REF!"}},{"$f":"'Tracking Spreadsheet'!#REF!","v":{"$error":"#REF!"}},{"$f":"'Tracking Spreadsheet'!C68","v":"00:00:00"},{"$f":"'Tracking Spreadsheet'!D68","v":0},{"$f":"'Tracking Spreadsheet'!E68","v":0},{"$f":"'Tracking Spreadsheet'!F68","v":0},null,0,null,null,null,null,null,null,null,null,null,null,null,null,{"$f":"'Tracking Spreadsheet'!#REF!","v":{"$error":"#REF!"}},{"$f":"'Tracking Spreadsheet'!#REF!","v":{"$error":"#REF!"}},{"$f":"'Tracking Spreadsheet'!#REF!","v":{"$error":"#REF!"}},{"$f":"'Tracking Spreadsheet'!#REF!","v":{"$error":"#REF!"}},null,0,0,{"$f":"'Tracking Spreadsheet'!#REF!","v":{"$error":"#REF!"}}]
[null,{"$f":"'Tracking Spreadsheet'!A69","v":0},{"$f":"'Tracking Spreadsheet'!B69","v":0},{"$f":"'Tracking Spreadsheet'!#REF!","v":{"$error":"#REF!"}},{"$f":"'Tracking Spreadsheet'!#REF!","v":{"$error":"#REF!"}},{"$f":"'Tracking Spreadsheet'!#REF!","v":{"$error":"#REF!"}},{"$f":"'Tracking Spreadsheet'!C69","v":"00:00:00"},{"$f":"'Tracking Spreadsheet'!D69","v":0},{"$f":"'Tracking Spreadsheet'!E69","v":0},{"$f":"'Tracking Spreadsheet'!F69","v":0},null,0,null,null,null,null,null,null,null,null,null,null,null,null,{"$f":"'Tracking Spreadsheet'!#REF!","v":{"$error":"#REF!"}},{"$f":"'Tracking Spreadsheet'!#REF!","v":{"$error":"#REF!"}},{"$f":"'Tracking Spreadsheet'!#REF!","v":{"$error":"#REF!"}},{"$f":"'Tracking Spreadsheet'!#REF!","v":{"$error":"#REF!"}},null,0,0,{"$f":"'Tracking Spreadsheet'!#REF!","v":{"$error":"#REF!"}}]
[null,{"$f":"'Tracking Spreadsheet'!A70","v":0},{"$f":"'Tracking Spreadsheet'!B70","v":0},{"$f":"'Tracking Spreadsheet'!#REF!","v":{"$error":"#REF!"}},{"$f":"'Tracking Spreadsheet'!#REF!","v":{"$error":"#REF!"}},{"$f":"'Tracking Spreadsheet'!#REF!","v":{"$error":"#REF!"}},{"$f":"'Tracking Spreadsheet'!C70","v":"00:00:00"},{"$f":"'Tracking Spreadsheet'!D70","v":0},{"$f":"'Tracking Spreadsheet'!E70","v":0},{"$f":"'Tracking Spreadsheet'!F70","v":0},null,0,null,null,null,null,null,null,null,null,null,null,null,null,{"$f":"'Tracking Spreadsheet'!#REF!","v":{"$error":"#REF!"}},{"$f":"'Tracking Spreadsheet'!#REF!","v":{"$error":"#REF!"}},{"$f":"'Tracking Spreadsheet'!#REF!","v":{"$error":"#REF!"}},{"$f":"'Tracking Spreadsheet'!#REF!","v":{"$error":"#REF!"}},null,0,0,{"$f":"'Tracking Spreadsheet'!#REF!","v":{"$error":"#REF!"}}]
[null,{"$f":"'Tracking Spreadsheet'!A71","v":0},{"$f":"'Tracking Spreadsheet'!B71","v":0},{"$f":"'Tracking Spreadsheet'!#REF!","v":{"$error":"#REF!"}},{"$f":"'Tracking Spreadsheet'!#REF!","v":{"$error":"#REF!"}},{"$f":"'Tracking Spreadsheet'!#REF!","v":{"$error":"#REF!"}},{"$f":"'Tracking Spreadsheet'!C71","v":"00:00:00"},{"$f":"'Tracking Spreadsheet'!D71","v":0},{"$f":"'Tracking Spreadsheet'!E71","v":0},{"$f":"'Tracking Spreadsheet'!F71","v":0},null,0,null,null,null,null,null,null,null,null,null,null,null,null,{"$f":"'Tracking Spreadsheet'!#REF!","v":{"$error":"#REF!"}},{"$f":"'Tracking Spreadsheet'!#REF!","v":{"$error":"#REF!"}},{"$f":"'Tracking Spreadsheet'!#REF!","v":{"$error":"#REF!"}},{"$f":"'Tracking Spreadsheet'!#REF!","v":{"$error":"#REF!"}},null,0,0,{"$f":"'Tracking Spreadsheet'!#REF!","v":{"$error":"#REF!"}}]
[null,{"$f":"'Tracking Spreadsheet'!A72","v":0},{"$f":"'Tracking Spreadsheet'!B72","v":0},{"$f":"'Tracking Spreadsheet'!#REF!","v":{"$error":"#REF!"}},{"$f":"'Tracking Spreadsheet'!#REF!","v":{"$error":"#REF!"}},{"$f":"'Tracking Spreadsheet'!#REF!","v":{"$error":"#REF!"}},{"$f":"'Tracking Spreadsheet'!C72","v":"00:00:00"},{"$f":"'Tracking Spreadsheet'!D72","v":0},{"$f":"'Tracking Spreadsheet'!E72","v":0},{"$f":"'Tracking Spreadsheet'!F72","v":0},null,0,null,null,null,null,null,null,null,null,null,null,null,null,{"$f":"'Tracking Spreadsheet'!#REF!","v":{"$error":"#REF!"}},{"$f":"'Tracking Spreadsheet'!#REF!","v":{"$error":"#REF!"}},{"$f":"'Tracking Spreadsheet'!#REF!","v":{"$error":"#REF!"}},{"$f":"'Tracking Spreadsheet'!#REF!","v":{"$error":"#REF!"}},null,0,0,{"$f":"'Tracking Spreadsheet'!#REF!","v":{"$error":"#REF!"}}]
[null,{"$f":"'Tracking Spreadsheet'!A73","v":0},{"$f":"'Tracking Spreadsheet'!B73","v":0},{"$f":"'Tracking Spreadsheet'!#REF!","v":{"$error":"#REF!"}},{"$f":"'Tracking Spreadsheet'!#REF!","v":{"$error":"#REF!"}},{"$f":"'Tracking Spreadsheet'!#REF!","v":{"$error":"#REF!"}},{"$f":"'Tracking Spreadsheet'!C73","v":"00:00:00"},{"$f":"'Tracking Spreadsheet'!D73","v":0},{"$f":"'Tracking Spreadsheet'!E73","v":0},{"$f":"'Tracking Spreadsheet'!F73","v":0},null,0,null,null,null,null,null,null,null,null,null,null,null,null,{"$f":"'Tracking Spreadsheet'!#REF!","v":{"$error":"#REF!"}},{"$f":"'Tracking Spreadsheet'!#REF!","v":{"$error":"#REF!"}},{"$f":"'Tracking Spreadsheet'!#REF!","v":{"$error":"#REF!"}},{"$f":"'Tracking Spreadsheet'!#REF!","v":{"$error":"#REF!"}},null,0,0,{"$f":"'Tracking Spreadsheet'!#REF!","v":{"$error":"#REF!"}}]
[null,{"$f":"'Tracking Spreadsheet'!A74","v":0},{"$f":"'Tracking Spreadsheet'!B74","v":0},{"$f":"'Tracking Spreadsheet'!#REF!","v":{"$error":"#REF!"}},{"$f":"'Tracking Spreadsheet'!#REF!","v":{"$error":"#REF!"}},{"$f":"'Tracking Spreadsheet'!#REF!","v":{"$error":"#REF!"}},{"$f":"'Tracking Spreadsheet'!C74","v":"00:00:00"},{"$f":"'Tracking Spreadsheet'!D74","v":0},{"$f":"'Tracking Spreadsheet'!E74","v":0},{"$f":"'Tracking Spreadsheet'!F74","v":0},null,0,null,null,null,null,null,null,null,null,null,null,null,null,{"$f":"'Tracking Spreadsheet'!#REF!","v":{"$error":"#REF!"}},{"$f":"'Tracking Spreadsheet'!#REF!","v":{"$error":"#REF!"}},{"$f":"'Tracking Spreadsheet'!#REF!","v":{"$error":"#REF!"}},{"$f":"'Tracking Spreadsheet'!#REF!","v":{"$error":"#REF!"}},null,0,0,{"$f":"'Tracking Spreadsheet'!#REF!","v":{"$error":"#REF!"}}]
[null,{"$f":"'Tracking Spreadsheet'!A75","v":0},{"$f":"'Tracking Spreadsheet'!B75","v":0},{"$f":"'Tracking Spreadsheet'!#REF!","v":{"$error":"#REF!"}},{"$f":"'Tracking Spreadsheet'!#REF!","v":{"$error":"#REF!"}},{"$f":"'Tracking Spreadsheet'!#REF!","v":{"$error":"#REF!"}},{"$f":"'Tracking Spreadsheet'!C75","v":"00:00:00"},{"$f":"'Tracking Spreadsheet'!D75","v":0},{"$f":"'Tracking Spreadsheet'!E75","v":0},{"$f":"'Tracking Spreadsheet'!F75","v":0},null,0,null,null,null,null,null,null,null,null,null,null,null,null,{"$f":"'Tracking Spreadsheet'!#REF!","v":{"$error":"#REF!"}},{"$f":"'Tracking Spreadsheet'!#REF!","v":{"$error":"#REF!"}},{"$f":"'Tracking Spreadsheet'!#REF!","v":{"$error":"#REF!"}},{"$f":"'Tracking Spreadsheet'!#REF!","v":{"$error":"#REF!"}},null,0,0,{"$f":"'Tracking Spreadsheet'!#REF!","v":{"$error":"#REF!"}}]
[null,{"$f":"'Tracking Spreadsheet'!A76","v":0},{"$f":"'Tracking Spreadsheet'!B76","v":0},{"$f":"'Tracking Spreadsheet'!#REF!","v":{"$error":"#REF!"}},{"$f":"'Tracking Spreadsheet'!#REF!","v":{"$error":"#REF!"}},{"$f":"'Tracking Spreadsheet'!#REF!","v":{"$error":"#REF!"}},{"$f":"'Tracking Spreadsheet'!C76","v":"00:00:00"},{"$f":"'Tracking Spreadsheet'!D76","v":0},{"$f":"'Tracking Spreadsheet'!E76","v":0},{"$f":"'Tracking Spreadsheet'!F76","v":0},null,0,null,null,null,null,null,null,null,null,null,null,null,null,{"$f":"'Tracking Spreadsheet'!#REF!","v":{"$error":"#REF!"}},{"$f":"'Tracking Spreadsheet'!#REF!","v":{"$error":"#REF!"}},{"$f":"'Tracking Spreadsheet'!#REF!","v":{"$error":"#REF!"}},{"$f":"'Tracking Spreadsheet'!#REF!","v":{"$error":"#REF!"}},null,0,0,{"$f":"'Tracking Spreadsheet'!#REF!","v":{"$error":"#REF!"}}]
[null,{"$f":"'Tracking Spreadsheet'!A77","v":0},{"$f":"'Tracking Spreadsheet'!B77","v":0},{"$f":"'Tracking Spreadsheet'!#REF!","v":{"$error":"#REF!"}},{"$f":"'Tracking Spreadsheet'!#REF!","v":{"$error":"#REF!"}},{"$f":"'Tracking Spreadsheet'!#REF!","v":{"$error":"#REF!"}},{"$f":"'Tracking Spreadsheet'!C77","v":"00:00:00"},{"$f":"'Tracking Spreadsheet'!D77","v":0},{"$f":"'Tracking Spreadsheet'!E77","v":0},{"$f":"'Tracking Spreadsheet'!F77","v":0},null,0,null,null,null,null,null,null,null,null,null,null,null,null,{"$f":"'Tracking Spreadsheet'!#REF!","v":{"$error":"#REF!"}},{"$f":"'Tracking Spreadsheet'!#REF!","v":{"$error":"#REF!"}},{"$f":"'Tracking Spreadsheet'!#REF!","v":{"$error":"#REF!"}},{"$f":"'Tracking Spreadsheet'!#REF!","v":{"$error":"#REF!"}},null,0,0,{"$f":"'Tracking Spreadsheet'!#REF!","v":{"$error":"#REF!"}}]
[null,{"$f":"'Tracking Spreadsheet'!A78","v":0},{"$f":"'Tracking Spreadsheet'!B78","v":0},{"$f":"'Tracking Spreadsheet'!#REF!","v":{"$error":"#REF!"}},{"$f":"'Tracking Spreadsheet'!#REF!","v":{"$error":"#REF!"}},{"$f":"'Tracking Spreadsheet'!#REF!","v":{"$error":"#REF!"}},{"$f":"'Tracking Spreadsheet'!C78","v":"00:00:00"},{"$f":"'Tracking Spreadsheet'!D78","v":0},{"$f":"'Tracking Spreadsheet'!E78","v":0},{"$f":"'Tracking Spreadsheet'!F78","v":0},null,0,null,null,null,null,null,null,null,null,null,null,null,null,{"$f":"'Tracking Spreadsheet'!#REF!","v":{"$error":"#REF!"}},{"$f":"'Tracking Spreadsheet'!#REF!","v":{"$error":"#REF!"}},{"$f":"'Tracking Spreadsheet'!#REF!","v":{"$error":"#REF!"}},{"$f":"'Tracking Spreadsheet'!#REF!","v":{"$error":"#REF!"}},null,0,0,{"$f":"'Tracking Spreadsheet'!#REF!","v":{"$error":"#REF!"}}]
[null,{"$f":"'Tracking Spreadsheet'!A79","v":0},{"$f":"'Tracking Spreadsheet'!B79","v":0},{"$f":"'Tracking Spreadsheet'!#REF!","v":{"$error":"#REF!"}},{"$f":"'Tracking Spreadsheet'!#REF!","v":{"$error":"#REF!"}},{"$f":"'Tracking Spreadsheet'!#REF!","v":{"$error":"#REF!"}},{"$f":"'Tracking Spreadsheet'!C79","v":"00:00:00"},{"$f":"'Tracking Spreadsheet'!D79","v":0},{"$f":"'Tracking Spreadsheet'!E79","v":0},{"$f":"'Tracking Spreadsheet'!F79","v":0},null,0,null,null,null,null,null,null,null,null,null,null,null,null,{"$f":"'Tracking Spreadsheet'!#REF!","v":{"$error":"#REF!"}},{"$f":"'Tracking Spreadsheet'!#REF!","v":{"$error":"#REF!"}},{"$f":"'Tracking Spreadsheet'!#REF!","v":{"$error":"#REF!"}},{"$f":"'Tracking Spreadsheet'!#REF!","v":{"$error":"#REF!"}},null,0,0,{"$f":"'Tracking Spreadsheet'!#REF!","v":{"$error":"#REF!"}}]
[null,{"$f":"'Tracking Spreadsheet'!A80","v":0},{"$f":"'Tracking Spreadsheet'!B80","v":0},{"$f":"'Tracking Spreadsheet'!#REF!","v":{"$error":"#REF!"}},{"$f":"'Tracking Spreadsheet'!#REF!","v":{"$error":"#REF!"}},{"$f":"'Tracking Spreadsheet'!#REF!","v":{"$error":"#REF!"}},{"$f":"'Tracking Spreadsheet'!C80","v":"00:00:00"},{"$f":"'Tracking Spreadsheet'!D80","v":0},{"$f":"'Tracking Spreadsheet'!E80","v":0},{"$f":"'Tracking Spreadsheet'!F80","v":0},null,0,null,null,null,null,null,null,null,null,null,null,null,null,{"$f":"'Tracking Spreadsheet'!#REF!","v":{"$error":"#REF!"}},{"$f":"'Tracking Spreadsheet'!#REF!","v":{"$error":"#REF!"}},{"$f":"'Tracking Spreadsheet'!#REF!","v":{"$error":"#REF!"}},{"$f":"'Tracking Spreadsheet'!#REF!","v":{"$error":"#REF!"}},null,0,0,{"$f":"'Tracking Spreadsheet'!#REF!","v":{"$error":"#REF!"}}]
[null,{"$f":"'Tracking Spreadsheet'!A81","v":0},{"$f":"'Tracking Spreadsheet'!B81","v":0},{"$f":"'Tracking Spreadsheet'!#REF!","v":{"$error":"#REF!"}},{"$f":"'Tracking Spreadsheet'!#REF!","v":{"$error":"#REF!"}},{"$f":"'Tracking Spreadsheet'!#REF!","v":{"$error":"#REF!"}},{"$f":"'Tracking Spreadsheet'!C81","v":"00:00:00"},{"$f":"'Tracking Spreadsheet'!D81","v":0},{"$f":"'Tracking Spreadsheet'!E81","v":0},{"$f":"'Tracking Spreadsheet'!F81","v":0},null,0,null,null,null,null,null,null,null,null,null,null,null,null,{"$f":"'Tracking Spreadsheet'!#REF!","v":{"$error":"#REF!"}},{"$f":"'Tracking Spreadsheet'!#REF!","v":{"$error":"#REF!"}},{"$f":"'Tracking Spreadsheet'!#REF!","v":{"$error":"#REF!"}},{"$f":"'Tracking Spreadsheet'!#REF!","v":{"$error":"#REF!"}},null,0,0,{"$f":"'Tracking Spreadsheet'!#REF!","v":{"$error":"#REF!"}}]
[null,{"$f":"'Tracking Spreadsheet'!A82","v":0},{"$f":"'Tracking Spreadsheet'!B82","v":0},{"$f":"'Tracking Spreadsheet'!#REF!","v":{"$error":"#REF!"}},{"$f":"'Tracking Spreadsheet'!#REF!","v":{"$error":"#REF!"}},{"$f":"'Tracking Spreadsheet'!#REF!","v":{"$error":"#REF!"}},{"$f":"'Tracking Spreadsheet'!C82","v":"00:00:00"},{"$f":"'Tracking Spreadsheet'!D82","v":0},{"$f":"'Tracking Spreadsheet'!E82","v":0},{"$f":"'Tracking Spreadsheet'!F82","v":0},null,0,null,null,null,null,null,null,null,null,null,null,null,null,{"$f":"'Tracking Spreadsheet'!#REF!","v":{"$error":"#REF!"}},{"$f":"'Tracking Spreadsheet'!#REF!","v":{"$error":"#REF!"}},{"$f":"'Tracking Spreadsheet'!#REF!","v":{"$error":"#REF!"}},{"$f":"'Tracking Spreadsheet'!#REF!","v":{"$error":"#REF!"}},null,0,0,{"$f":"'Tracking Spreadsheet'!#REF!","v":{"$error":"#REF!"}}]
[null,{"$f":"'Tracking Spreadsheet'!A83","v":0},{"$f":"'Tracking Spreadsheet'!B83","v":0},{"$f":"'Tracking Spreadsheet'!#REF!","v":{"$error":"#REF!"}},{"$f":"'Tracking Spreadsheet'!#REF!","v":{"$error":"#REF!"}},{"$f":"'Tracking Spreadsheet'!#REF!","v":{"$error":"#REF!"}},{"$f":"'Tracking Spreadsheet'!C83","v":"00:00:00"},{"$f":"'Tracking Spreadsheet'!D83","v":0},{"$f":"'Tracking Spreadsheet'!E83","v":0},{"$f":"'Tracking Spreadsheet'!F83","v":0},null,0,null,null,null,null,null,null,null,null,null,null,null,null,{"$f":"'Tracking Spreadsheet'!#REF!","v":{"$error":"#REF!"}},{"$f":"'Tracking Spreadsheet'!#REF!","v":{"$error":"#REF!"}},{"$f":"'Tracking Spreadsheet'!#REF!","v":{"$error":"#REF!"}},{"$f":"'Tracking Spreadsheet'!#REF!","v":{"$error":"#REF!"}},null,0,0,{"$f":"'Tracking Spreadsheet'!#REF!","v":{"$error":"#REF!"}}]
[null,{"$f":"'Tracking Spreadsheet'!A84","v":0},{"$f":"'Tracking Spreadsheet'!B84","v":0},{"$f":"'Tracking Spreadsheet'!#REF!","v":{"$error":"#REF!"}},{"$f":"'Tracking Spreadsheet'!#REF!","v":{"$error":"#REF!"}},{"$f":"'Tracking Spreadsheet'!#REF!","v":{"$error":"#REF!"}},{"$f":"'Tracking Spreadsheet'!C84","v":"00:00:00"},{"$f":"'Tracking Spreadsheet'!D84","v":0},{"$f":"'Tracking Spreadsheet'!E84","v":0},{"$f":"'Tracking Spreadsheet'!F84","v":0},null,0,null,null,null,null,null,null,null,null,null,null,null,null,{"$f":"'Tracking Spreadsheet'!#REF!","v":{"$error":"#REF!"}},{"$f":"'Tracking Spreadsheet'!#REF!","v":{"$error":"#REF!"}},{"$f":"'Tracking Spreadsheet'!#REF!","v":{"$error":"#REF!"}},{"$f":"'Tracking Spreadsheet'!#REF!","v":{"$error":"#REF!"}},null,0,0,{"$f":"'Tracking Spreadsheet'!#REF!","v":{"$error":"#REF!"}}]
[null,{"$f":"'Tracking Spreadsheet'!A85","v":0},{"$f":"'Tracking Spreadsheet'!B85","v":0},{"$f":"'Tracking Spreadsheet'!#REF!","v":{"$error":"#REF!"}},{"$f":"'Tracking Spreadsheet'!#REF!","v":{"$error":"#REF!"}},{"$f":"'Tracking Spreadsheet'!#REF!","v":{"$error":"#REF!"}},{"$f":"'Tracking Spreadsheet'!C85","v":"00:00:00"},{"$f":"'Tracking Spreadsheet'!D85","v":0},{"$f":"'Tracking Spreadsheet'!E85","v":0},{"$f":"'Tracking Spreadsheet'!F85","v":0},null,0,null,null,null,null,null,null,null,null,null,null,null,null,{"$f":"'Tracking Spreadsheet'!#REF!","v":{"$error":"#REF!"}},{"$f":"'Tracking Spreadsheet'!#REF!","v":{"$error":"#REF!"}},{"$f":"'Tracking Spreadsheet'!#REF!","v":{"$error":"#REF!"}},{"$f":"'Tracking Spreadsheet'!#REF!","v":{"$error":"#REF!"}},null,0,0,{"$f":"'Tracking Spreadsheet'!#REF!","v":{"$error":"#REF!"}}]
[null,{"$f":"'Tracking Spreadsheet'!A86","v":0},{"$f":"'Tracking Spreadsheet'!B86","v":0},{"$f":"'Tracking Spreadsheet'!#REF!","v":{"$error":"#REF!"}},{"$f":"'Tracking Spreadsheet'!#REF!","v":{"$error":"#REF!"}},{"$f":"'Tracking Spreadsheet'!#REF!","v":{"$error":"#REF!"}},{"$f":"'Tracking Spreadsheet'!C86","v":"00:00:00"},{"$f":"'Tracking Spreadsheet'!D86","v":0},{"$f":"'Tracking Spreadsheet'!E86","v":0},{"$f":"'Tracking Spreadsheet'!F86","v":0},null,0,null,null,null,null,null,null,null,null,null,null,null,null,{"$f":"'Tracking Spreadsheet'!#REF!","v":{"$error":"#REF!"}},{"$f":"'Tracking Spreadsheet'!#REF!","v":{"$error":"#REF!"}},{"$f":"'Tracking Spreadsheet'!#REF!","v":{"$error":"#REF!"}},{"$f":"'Tracking Spreadsheet'!#REF!","v":{"$error":"#REF!"}},null,0,0,{"$f":"'Tracking Spreadsheet'!#REF!","v":{"$error":"#REF!"}}]
[null,{"$f":"'Tracking Spreadsheet'!A87","v":0},{"$f":"'Tracking Spreadsheet'!B87","v":0},{"$f":"'Tracking Spreadsheet'!#REF!","v":{"$error":"#REF!"}},{"$f":"'Tracking Spreadsheet'!#REF!","v":{"$error":"#REF!"}},{"$f":"'Tracking Spreadsheet'!#REF!","v":{"$error":"#REF!"}},{"$f":"'Tracking Spreadsheet'!C87","v":"00:00:00"},{"$f":"'Tracking Spreadsheet'!D87","v":0},{"$f":"'Tracking Spreadsheet'!E87","v":0},{"$f":"'Tracking Spreadsheet'!F87","v":0},null,0,null,null,null,null,null,null,null,null,null,null,null,null,{"$f":"'Tracking Spreadsheet'!#REF!","v":{"$error":"#REF!"}},{"$f":"'Tracking Spreadsheet'!#REF!","v":{"$error":"#REF!"}},{"$f":"'Tracking Spreadsheet'!#REF!","v":{"$error":"#REF!"}},{"$f":"'Tracking Spreadsheet'!#REF!","v":{"$error":"#REF!"}},null,0,0,{"$f":"'Tracking Spreadsheet'!#REF!","v":{"$error":"#REF!"}}]
[null,{"$f":"'Tracking Spreadsheet'!A88","v":0},{"$f":"'Tracking Spreadsheet'!B88","v":0},{"$f":"'Tracking Spreadsheet'!#REF!","v":{"$error":"#REF!"}},{"$f":"'Tracking Spreadsheet'!#REF!","v":{"$error":"#REF!"}},{"$f":"'Tracking Spreadsheet'!#REF!","v":{"$error":"#REF!"}},{"$f":"'Tracking Spreadsheet'!C88","v":"00:00:00"},{"$f":"'Tracking Spreadsheet'!D88","v":0},{"$f":"'Tracking Spreadsheet'!E88","v":0},{"$f":"'Tracking Spreadsheet'!F88","v":0},null,0,null,null,null,null,null,null,null,null,null,null,null,null,{"$f":"'Tracking Spreadsheet'!#REF!","v":{"$error":"#REF!"}},{"$f":"'Tracking Spreadsheet'!#REF!","v":{"$error":"#REF!"}},{"$f":"'Tracking Spreadsheet'!#REF!","v":{"$error":"#REF!"}},{"$f":"'Tracking Spreadsheet'!#REF!","v":{"$error":"#REF!"}},null,0,0,{"$f":"'Tracking Spreadsheet'!#REF!","v":{"$error":"#REF!"}}]
[null,{"$f":"'Tracking Spreadsheet'!A89","v":0},{"$f":"'Tracking Spreadsheet'!B89","v":0},{"$f":"'Tracking Spreadsheet'!#REF!","v":{"$error":"#REF!"}},{"$f":"'Tracking Spreadsheet'!#REF!","v":{"$error":"#REF!"}},{"$f":"'Tracking Spreadsheet'!#REF!","v":{"$error":"#REF!"}},{"$f":"'Tracking Spreadsheet'!C89","v":"00:00:00"},{"$f":"'Tracking Spreadsheet'!D89","v":0},{"$f":"'Tracking Spreadsheet'!E89","v":0},{"$f":"'Tracking Spreadsheet'!F89","v":0},null,0,null,null,null,null,null,null,null,null,null,null,null,null,{"$f":"'Tracking Spreadsheet'!#REF!","v":{"$error":"#REF!"}},{"$f":"'Tracking Spreadsheet'!#REF!","v":{"$error":"#REF!"}},{"$f":"'Tracking Spreadsheet'!#REF!","v":{"$error":"#REF!"}},{"$f":"'Tracking Spreadsheet'!#REF!","v":{"$error":"#REF!"}},null,0,0,{"$f":"'Tracking Spreadsheet'!#REF!","v":{"$error":"#REF!"}}]
[null,{"$f":"'Tracking Spreadsheet'!A90","v":0},{"$f":"'Tracking Spreadsheet'!B90","v":0},{"$f":"'Tracking Spreadsheet'!#REF!","v":{"$error":"#REF!"}},{"$f":"'Tracking Spreadsheet'!#REF!","v":{"$error":"#REF!"}},{"$f":"'Tracking Spreadsheet'!#REF!","v":{"$error":"#REF!"}},{"$f":"'Tracking Spreadsheet'!C90","v":"00:00:00"},{"$f":"'Tracking Spreadsheet'!D90","v":0},{"$f":"'Tracking Spreadsheet'!E90","v":0},{"$f":"'Tracking Spreadsheet'!F90","v":0},null,0,null,null,null,null,null,null,null,null,null,null,null,null,{"$f":"'Tracking Spreadsheet'!#REF!","v":{"$error":"#REF!"}},{"$f":"'Tracking Spreadsheet'!#REF!","v":{"$error":"#REF!"}},{"$f":"'Tracking Spreadsheet'!#REF!","v":{"$error":"#REF!"}},{"$f":"'Tracking Spreadsheet'!#REF!","v":{"$error":"#REF!"}},null,0,0,{"$f":"'Tracking Spreadsheet'!#REF!","v":{"$error":"#REF!"}}]
[null,{"$f":"'Tracking Spreadsheet'!A91","v":0},{"$f":"'Tracking Spreadsheet'!B91","v":0},{"$f":"'Tracking Spreadsheet'!#REF!","v":{"$error":"#REF!"}},{"$f":"'Tracking Spreadsheet'!#REF!","v":{"$error":"#REF!"}},{"$f":"'Tracking Spreadsheet'!#REF!","v":{"$error":"#REF!"}},{"$f":"'Tracking Spreadsheet'!C91","v":"00:00:00"},{"$f":"'Tracking Spreadsheet'!D91","v":0},{"$f":"'Tracking Spreadsheet'!E91","v":0},{"$f":"'Tracking Spreadsheet'!F91","v":0},null,0,null,null,null,null,null,null,null,null,null,null,null,null,{"$f":"'Tracking Spreadsheet'!#REF!","v":{"$error":"#REF!"}},{"$f":"'Tracking Spreadsheet'!#REF!","v":{"$error":"#REF!"}},{"$f":"'Tracking Spreadsheet'!#REF!","v":{"$error":"#REF!"}},{"$f":"'Tracking Spreadsheet'!#REF!","v":{"$error":"#REF!"}},null,0,0,{"$f":"'Tracking Spreadsheet'!#REF!","v":{"$error":"#REF!"}}]
[null,{"$f":"'Tracking Spreadsheet'!A92","v":0},{"$f":"'Tracking Spreadsheet'!B92","v":0},{"$f":"'Tracking Spreadsheet'!#REF!","v":{"$error":"#REF!"}},{"$f":"'Tracking Spreadsheet'!#REF!","v":{"$error":"#REF!"}},{"$f":"'Tracking Spreadsheet'!#REF!","v":{"$error":"#REF!"}},{"$f":"'Tracking Spreadsheet'!C92","v":"00:00:00"},{"$f":"'Tracking Spreadsheet'!D92","v":0},{"$f":"'Tracking Spreadsheet'!E92","v":0},{"$f":"'Tracking Spreadsheet'!F92","v":0},null,0,null,null,null,null,null,null,null,null,null,null,null,null,{"$f":"'Tracking Spreadsheet'!#REF!","v":{"$error":"#REF!"}},{"$f":"'Tracking Spreadsheet'!#REF!","v":{"$error":"#REF!"}},{"$f":"'Tracking Spreadsheet'!#REF!","v":{"$error":"#REF!"}},{"$f":"'Tracking Spreadsheet'!#REF!","v":{"$error":"#REF!"}},null,0,0,{"$f":"'Tracking Spreadsheet'!#REF!","v":{"$error":"#REF!"}}]
[null,{"$f":"'Tracking Spreadsheet'!A93","v":0},{"$f":"'Tracking Spreadsheet'!B93","v":0},{"$f":"'Tracking Spreadsheet'!#REF!","v":{"$error":"#REF!"}},{"$f":"'Tracking Spreadsheet'!#REF!","v":{"$error":"#REF!"}},{"$f":"'Tracking Spreadsheet'!#REF!","v":{"$error":"#REF!"}},{"$f":"'Tracking Spreadsheet'!C93","v":"00:00:00"},{"$f":"'Tracking Spreadsheet'!D93","v":0},{"$f":"'Tracking Spreadsheet'!E93","v":0},{"$f":"'Tracking Spreadsheet'!F93","v":0},null,0,null,null,null,null,null,null,null,null,null,null,null,null,{"$f":"'Tracking Spreadsheet'!#REF!","v":{"$error":"#REF!"}},{"$f":"'Tracking Spreadsheet'!#REF!","v":{"$error":"#REF!"}},{"$f":"'Tracking Spreadsheet'!#REF!","v":{"$error":"#REF!"}},{"$f":"'Tracking Spreadsheet'!#REF!","v":{"$error":"#REF!"}},null,0,0,{"$f":"'Tracking Spreadsheet'!#REF!","v":{"$error":"#REF!"}}]
[null,{"$f":"'Tracking Spreadsheet'!A94","v":0},{"$f":"'Tracking Spreadsheet'!B94","v":0},{"$f":"'Tracking Spreadsheet'!#REF!","v":{"$error":"#REF!"}},{"$f":"'Tracking Spreadsheet'!#REF!","v":{"$error":"#REF!"}},{"$f":"'Tracking Spreadsheet'!#REF!","v":{"$error":"#REF!"}},{"$f":"'Tracking Spreadsheet'!C94","v":"00:00:00"},{"$f":"'Tracking Spreadsheet'!D94","v":0},{"$f":"'Tracking Spreadsheet'!E94","v":0},{"$f":"'Tracking Spreadsheet'!F94","v":0},null,0,null,null,null,null,null,null,null,null,null,null,null,null,{"$f":"'Tracking Spreadsheet'!#REF!","v":{"$error":"#REF!"}},{"$f":"'Tracking Spreadsheet'!#REF!","v":{"$error":"#REF!"}},{"$f":"'Tracking Spreadsheet'!#REF!","v":{"$error":"#REF!"}},{"$f":"'Tracking Spreadsheet'!#REF!","v":{"$error":"#REF!"}},null,0,0,{"$f":"'Tracking Spreadsheet'!#REF!","v":{"$error":"#REF!"}}]
[null,{"$f":"'Tracking Spreadsheet'!A95","v":0},{"$f":"'Tracking Spreadsheet'!B95","v":0},{"$f":"'Tracking Spreadsheet'!#REF!","v":{"$error":"#REF!"}},{"$f":"'Tracking Spreadsheet'!#REF!","v":{"$error":"#REF!"}},{"$f":"'Tracking Spreadsheet'!#REF!","v":{"$error":"#REF!"}},{"$f":"'Tracking Spreadsheet'!C95","v":"00:00:00"},{"$f":"'Tracking Spreadsheet'!D95","v":0},{"$f":"'Tracking Spreadsheet'!E95","v":0},{"$f":"'Tracking Spreadsheet'!F95","v":0},null,0,null,null,null,null,null,null,null,null,null,null,null,null,{"$f":"'Tracking Spreadsheet'!#REF!","v":{"$error":"#REF!"}},{"$f":"'Tracking Spreadsheet'!#REF!","v":{"$error":"#REF!"}},{"$f":"'Tracking Spreadsheet'!#REF!","v":{"$error":"#REF!"}},{"$f":"'Tracking Spreadsheet'!#REF!","v":{"$error":"#REF!"}},null,0,0,{"$f":"'Tracking Spreadsheet'!#REF!","v":{"$error":"#REF!"}}]
[null,{"$f":"'Tracking Spreadsheet'!A96","v":0},{"$f":"'Tracking Spreadsheet'!B96","v":0},{"$f":"'Tracking Spreadsheet'!#REF!","v":{"$error":"#REF!"}},{"$f":"'Tracking Spreadsheet'!#REF!","v":{"$error":"#REF!"}},{"$f":"'Tracking Spreadsheet'!#REF!","v":{"$error":"#REF!"}},{"$f":"'Tracking Spreadsheet'!C96","v":"00:00:00"},{"$f":"'Tracking Spreadsheet'!D96","v":0},{"$f":"'Tracking Spreadsheet'!E96","v":0},{"$f":"'Tracking Spreadsheet'!F96","v":0},null,0,null,null,null,null,null,null,null,null,null,null,null,null,{"$f":"'Tracking Spreadsheet'!#REF!","v":{"$error":"#REF!"}},{"$f":"'Tracking Spreadsheet'!#REF!","v":{"$error":"#REF!"}},{"$f":"'Tracking Spreadsheet'!#REF!","v":{"$error":"#REF!"}},{"$f":"'Tracking Spreadsheet'!#REF!","v":{"$error":"#REF!"}},null,0,0,{"$f":"'Tracking Spreadsheet'!#REF!","v":{"$error":"#REF!"}}]
[null,{"$f":"'Tracking Spreadsheet'!A97","v":0},{"$f":"'Tracking Spreadsheet'!B97","v":0},{"$f":"'Tracking Spreadsheet'!#REF!","v":{"$error":"#REF!"}},{"$f":"'Tracking Spreadsheet'!#REF!","v":{"$error":"#REF!"}},{"$f":"'Tracking Spreadsheet'!#REF!","v":{"$error":"#REF!"}},{"$f":"'Tracking Spreadsheet'!C97","v":"00:00:00"},{"$f":"'Tracking Spreadsheet'!D97","v":0},{"$f":"'Tracking Spreadsheet'!E97","v":0},{"$f":"'Tracking Spreadsheet'!F97","v":0},null,0,null,null,null,null,null,null,null,null,null,null,null,null,{"$f":"'Tracking Spreadsheet'!#REF!","v":{"$error":"#REF!"}},{"$f":"'Tracking Spreadsheet'!#REF!","v":{"$error":"#REF!"}},{"$f":"'Tracking Spreadsheet'!#REF!","v":{"$error":"#REF!"}},{"$f":"'Tracking Spreadsheet'!#REF!","v":{"$error":"#REF!"}},null,0,0,{"$f":"'Tracking Spreadsheet'!#REF!","v":{"$error":"#REF!"}}]
[null,{"$f":"'Tracking Spreadsheet'!A98","v":0},{"$f":"'Tracking Spreadsheet'!B98","v":0},{"$f":"'Tracking Spreadsheet'!#REF!","v":{"$error":"#REF!"}},{"$f":"'Tracking Spreadsheet'!#REF!","v":{"$error":"#REF!"}},{"$f":"'Tracking Spreadsheet'!#REF!","v":{"$error":"#REF!"}},{"$f":"'Tracking Spreadsheet'!C98","v":"00:00:00"},{"$f":"'Tracking Spreadsheet'!D98","v":0},{"$f":"'Tracking Spreadsheet'!E98","v":0},{"$f":"'Tracking Spreadsheet'!F98","v":0},null,0,null,null,null,null,null,null,null,null,null,null,null,null,{"$f":"'Tracking Spreadsheet'!#REF!","v":{"$error":"#REF!"}},{"$f":"'Tracking Spreadsheet'!#REF!","v":{"$error":"#REF!"}},{"$f":"'Tracking Spreadsheet'!#REF!","v":{"$error":"#REF!"}},{"$f":"'Tracking Spreadsheet'!#REF!","v":{"$error":"#REF!"}},null,0,0,{"$f":"'Tracking Spreadsheet'!#REF!","v":{"$error":"#REF!"}}]
[null,{"$f":"'Tracking Spreadsheet'!A99","v":0},{"$f":"'Tracking Spreadsheet'!B99","v":0},{"$f":"'Tracking Spreadsheet'!#REF!","v":{"$error":"#REF!"}},{"$f":"'Tracking Spreadsheet'!#REF!","v":{"$error":"#REF!"}},{"$f":"'Tracking Spreadsheet'!#REF!","v":{"$error":"#REF!"}},{"$f":"'Tracking Spreadsheet'!C99","v":"00:00:00"},{"$f":"'Tracking Spreadsheet'!D99","v":0},{"$f":"'Tracking Spreadsheet'!E99","v":0},{"$f":"'Tracking Spreadsheet'!F99","v":0},null,0,null,null,null,null,null,null,null,null,null,null,null,null,{"$f":"'Tracking Spreadsheet'!#REF!","v":{"$error":"#REF!"}},{"$f":"'Tracking Spreadsheet'!#REF!","v":{"$error":"#REF!"}},{"$f":"'Tracking Spreadsheet'!#REF!","v":{"$error":"#REF!"}},{"$f":"'Tracking Spreadsheet'!#REF!","v":{"$error":"#REF!"}},null,0,0,{"$f":"'Tracking Spreadsheet'!#REF!","v":{"$error":"#REF!"}}]
[{"$f":"COUNTA(A4:A100)","v":0},null,null,null,{"$f":"SUM(E4:E100)","v":{"$error":"#REF!"}},{"$f":"SUM(F4:F100)","v":{"$error":"#REF!"}},null,null,null,null,null,null,{"$f":"COUNTA(M4:M100)","v":0},{"$f":"COUNTA(N4:N100)","v":0},null,null,null,null,null,null,null,null,null,null,null,null,null,null,{"$f":"COUNTA(AC4:AC100)","v":0},{"$f":"SUM(AD4:AD100)","v":0},{"$f":"SUM(AE4:AE100)","v":0},null,{"$f":"SUM(AG4:AG100)","v":0},0,0,0,0,0,0,0,0,0,0,0,0,0,0,0,null,{"$f":"SUM(AX4:AX100)","v":0},{"$f":"SUM(AY4:AY100)","v":0}]
[null,null,null,null,null,null,null,null,null,null,null,null,null,null,null,null,null,null,null,null,null,null,null,null,null,null,null,null,null,null,null,null,{"$f":"SUM(AG4:AG101)","v":0},0,0,0,0,0,null,null,{"$f":"SUM(AO4:AO101)","v":0},0,0,0,0,0,0]
["Number of Reviews",null,null,null,{"$f":"E3","v":"Female (not on when to test)"},{"$f":"F3","v":" Male (not on when to test)"},null,null,null,null,null,null,"Total of Antibiotics Ordered",{"$f":"SUM(M101:N101)","v":0},null,null,null,null,null,null,null,null,null,null,null,null,null,null,"Number of Cultures",{"$f":"AD3","v":"Cx had three or more organisms"},"Was colony forming units within established standards",null,{"$f":"AG3","v":"E-coli"},{"$f":"AH3","v":"Proteus spp."},"Klebsiella spp.","Citrobacter spp.","Enterbacter spp.","Pseudomonas aeruginosa","Serratia spp.","Morganella spp.","other gram negative bacteria","Coag neg Staph","S. aureus","Enterococcus spp.","Streptococcus spp.","other gram positive bacteria","Yeast","Indicate if considered a Multi-drug Resistant Organism?",null,"Was the initial Abx order appropriate for the pathogen?","If not appropriate, did the provider change Abx with prompts within 72 hr. of culture?"]
[null,null,null,null,null,null,null,null,null,null,null,null,null,null,null,null,null,null,null,null,null,null,null,null,null,null,null,null,null,{"$f":"AD101/$N$103","v":{"$error":"#DIV/0!"}},{"$f":"AE101/$N$103","v":{"$error":"#DIV/0!"}},null,{"$f":"AG101/$AC$101","v":{"$error":"#DIV/0!"}},{"$f":"AH101/$AC$101","v":{"$error":"#DIV/0!"}},{"$error":"#DIV/0!"},{"$error":"#DIV/0!"},{"$error":"#DIV/0!"},{"$error":"#DIV/0!"},{"$error":"#DIV/0!"},{"$error":"#DIV/0!"},{"$error":"#DIV/0!"},{"$error":"#DIV/0!"},{"$error":"#DIV/0!"},{"$error":"#DIV/0!"},{"$error":"#DIV/0!"},{"$error":"#DIV/0!"},{"$error":"#DIV/0!"},{"$error":"#DIV/0!"},null,{"$f":"AX101/$AC$101","v":{"$error":"#DIV/0!"}},{"$f":"AY101/$AC$101","v":{"$error":"#DIV/0!"}}]
[null,null,null,null,null,null,null,null,null,null,null,null,null,null,null,null,null,null,null,null,null,null,null,null,null,null,null,null,null,null,null,null,null,null,null,null,null,null,null,null,null,null,null,null,null,null,null,null,null,"Goal is to have 100% when these two columns are added."]

{"sheet":"Lab Results","index":5,"n_rows":84,"n_cols":69,"rows_kept":84,"cut":false,"hidden":true,"merged":[[45,1,47,1],[48,0,50,0],[21,0,23,0],[27,1,29,1],[39,0,41,0],[42,0,44,0],[45,0,47,0],[30,0,32,0],[33,0,35,0],[36,0,38,0],[27,0,29,0],[48,1,50,1],[30,1,32,1],[33,1,35,1],[36,1,38,1],[39,1,41,1],[42,1,44,1],[9,0,11,0],[3,1,5,1],[3,0,5,0],[6,0,8,0],[24,0,26,0],[6,1,8,1],[9,1,11,1],[12,1,14,1],[15,1,17,1],[18,1,20,1],[21,1,23,1],[24,1,26,1],[12,0,14,0],[15,0,17,0],[18,0,20,0]]}
[]
["Facility Antibiotic Susceptibility Summery"]
["Resident's Name","Culture Date","Bacteria","Amoxicillin",null,"AMOXACILLIN-CLAVULANATE",null,null,null,"AMPICILLIN/SULBACTAM (Unasyn)","CEFAZOLIN",null,"CEFDINIR","CEFEPIME",null,"CEFOXITIN","CEFPODOXIME","CEFTAZIDIME",null,"CEFTRIAXONE",null,null,"CEFUROXIME","CIPROFLOXACIN",null,"CLINDAMYCIN",null,null,"DOXYCYCLINE",null,"ERYTHROMYCIN",null,"GENTAMICIN",null,"IMIPENEM",null,"LEVOFLOXACIN",null,"LINEZOLID",null,null,"MEROPENEM","MINOCYCLINE",null,"NITROFURANTOIN",null,null,null,"OXACILLIN",null,"PENICILLIN",null,null,"PIP/TAZOBACTAM",null,"TICARCILLIN",null,"PIPERACILLIN","RIFAMPIN","SULFAMETHOXAZOLE TRIMETHOPRIM (SXT)","TETRACYCLINE",null,"TMP/SULFA (Bactrim)","TOBRAMYCIN",null,null,"VANCOMYCIN",null,"Other"]
[]
[]
[]
[]
[]
[]
[]
[]
[]
[]
[]
[]
[]
[]
[]
[]
[]
[]
[]
[]
[]
[]
[]
[]
[]
[]
[]
[]
[]
[]
[]
[]
[]
[]
[]
[]
[]
[]
[]
[]
[]
[]
[]
[]
[]
[]
[]
[]
[null,{"$f":"COUNTA(B4:B50)","v":0},null,null,{"$f":"IF(D52=\"Sensitive\",0,IF(D52=\"Resistant\",1,IF(D52=\"Indeterminate\",1,\"BLANK\")))","v":"BLANK"},null,"BLANK",{"$f":"IF(#REF!=\"Sensitive\",0,IF(#REF!=\"Resistant\",1,IF(#REF!=\"Indeterminate\",1,\"BLANK\")))","v":{"$error":"#REF!"}},{"$f":"IF(#REF!=\"Sensitive\",0,IF(#REF!=\"Resistant\",1,IF(#REF!=\"Indeterminate\",1,\"BLANK\")))","v":{"$error":"#REF!"}},null,null,{"$f":"IF(K52=\"Sensitive\",0,IF(K52=\"Resistant\",1,IF(K52=\"Indeterminate\",1,\"BLANK\")))","v":"BLANK"},null,null,{"$f":"IF(N52=\"Sensitive\",0,IF(N52=\"Resistant\",1,IF(N52=\"Indeterminate\",1,\"BLANK\")))","v":"BLANK"},null,null,null,{"$f":"IF(R52=\"Sensitive\",0,IF(R52=\"Resistant\",1,IF(R52=\"Indeterminate\",1,\"BLANK\")))","v":"BLANK"},null,{"$f":"IF(T52=\"Sensitive\",0,IF(T52=\"Resistant\",1,IF(T52=\"Indeterminate\",1,\"BLANK\")))","v":"BLANK"},{"$f":"IF(#REF!=\"Sensitive\",0,IF(#REF!=\"Resistant\",1,IF(#REF!=\"Indeterminate\",1,\"BLANK\")))","v":{"$error":"#REF!"}},null,null,{"$f":"IF(X52=\"Sensitive\",0,IF(X52=\"Resistant\",1,IF(X52=\"Indeterminate\",1,\"BLANK\")))","v":"BLANK"},null,{"$f":"IF(Z52=\"Sensitive\",0,IF(Z52=\"Resistant\",1,IF(Z52=\"Indeterminate\",1,\"BLANK\")))","v":"BLANK"},{"$f":"IF(#REF!=\"Sensitive\",0,IF(#REF!=\"Resistant\",1,IF(#REF!=\"Indeterminate\",1,\"BLANK\")))","v":{"$error":"#REF!"}},null,{"$f":"IF(AC52=\"Sensitive\",0,IF(AC52=\"Resistant\",1,IF(AC52=\"Indeterminate\",1,\"BLANK\")))","v":"BLANK"},null,{"$f":"IF(AE52=\"Sensitive\",0,IF(AE52=\"Resistant\",1,IF(AE52=\"Indeterminate\",1,\"BLANK\")))","v":"BLANK"},null,{"$f":"IF(AG52=\"Sensitive\",0,IF(AG52=\"Resistant\",1,IF(AG52=\"Indeterminate\",1,\"BLANK\")))","v":"BLANK"},null,{"$f":"IF(AI52=\"Sensitive\",0,IF(AI52=\"Resistant\",1,IF(AI52=\"Indeterminate\",1,\"BLANK\")))","v":"BLANK"},null,{"$f":"IF(AK52=\"Sensitive\",0,IF(AK52=\"Resistant\",1,IF(AK52=\"Indeterminate\",1,\"BLANK\")))","v":"BLANK"},null,{"$f":"IF(AM52=\"Sensitive\",0,IF(AM52=\"Resistant\",1,IF(AM52=\"Indeterminate\",1,\"BLANK\")))","v":"BLANK"},{"$f":"IF(#REF!=\"Sensitive\",0,IF(#REF!=\"Resistant\",1,IF(#REF!=\"Indeterminate\",1,\"BLANK\")))","v":{"$error":"#REF!"}},null,null,{"$f":"IF(AQ52=\"Sensitive\",0,IF(AQ52=\"Resistant\",1,IF(AQ52=\"Indeterminate\",1,\"BLANK\")))","v":"BLANK"},null,{"$f":"IF(AS52=\"Sensitive\",0,IF(AS52=\"Resistant\",1,IF(AS52=\"Indeterminate\",1,\"BLANK\")))","v":"BLANK"},{"$f":"IF(#REF!=\"Sensitive\",0,IF(#REF!=\"Resistant\",1,IF(#REF!=\"Indeterminate\",1,\"BLANK\")))","v":{"$error":"#REF!"}},{"$f":"IF(#REF!=\"Sensitive\",0,IF(#REF!=\"Resistant\",1,IF(#REF!=\"Indeterminate\",1,\"BLANK\")))","v":{"$error":"#REF!"}},null,{"$f":"IF(AW52=\"Sensitive\",0,IF(AW52=\"Resistant\",1,IF(AW52=\"Indeterminate\",1,\"BLANK\")))","v":"BLANK"},null,{"$f":"IF(AY52=\"Sensitive\",0,IF(AY52=\"Resistant\",1,IF(AY52=\"Indeterminate\",1,\"BLANK\")))","v":"BLANK"},{"$f":"IF(#REF!=\"Sensitive\",0,IF(#REF!=\"Resistant\",1,IF(#REF!=\"Indeterminate\",1,\"BLANK\")))","v":{"$error":"#REF!"}}]
[null,"Number of Cultures Reviewed"]
[null,"Indeterminate and Resistant",null,{"$f":"SUM(E4:E52)","v":0},{"$f":"SUM(F4:F52)","v":0},{"$f":"SUM(G4:G52)","v":0},{"$f":"SUM(H4:H52)","v":{"$error":"#REF!"}},{"$error":"#REF!"},0,0,0,0,0,0,0,0,0,0,0,0,{"$error":"#REF!"},0,0,0,0,0,{"$error":"#REF!"},0,0,0,0,0,0,0,0,0,0,0,0,{"$error":"#REF!"},0,0,0,0,0,{"$error":"#REF!"},{"$error":"#REF!"},0,0,0,0,{"$error":"#REF!"},0,0,0,0,0,0,0,0,0,0,0,0,0,0,0,0,0]
[null,null,"E-coli sensitive",{"$f":"COUNTIFS(C4:C52,\"E-coli\",D4:D52,\"Sensitive\")","v":0},{"$f":"COUNTIFS(D4:D52,\"E-coli\",E4:E52,\"Sensitive\")","v":0},0,0,0,0,0,0,0,0,0,0,0,0,0,0,0,0,0,0,0,0,0,0,0,0,0,0,0,0,0,0,0,0,0,0,0,0,0,0,0,0,0,0,0,0,0,0,0,0,0,0,0,0,0,0,0,0,0,0,0,0,0,0,0,{"$f":"COUNTIFS(BP4:BP52,\"E-coli\",BQ4:BQ52,\"Sensitive\")","v":0}]
[null,null,"E-coli indeterminate",{"$f":"COUNTIFS(C4:C52,\"E-coli\",D4:D52,\"Indeterminate\")","v":0},{"$f":"COUNTIFS(D4:D52,\"E-coli\",E4:E52,\"Indeterminate\")","v":0},0,0,0,0,0,0,0,0,0,0,0,0,0,0,0,0,0,0,0,0,0,0,0,0,0,0,0,0,0,0,0,0,0,0,0,0,0,0,0,0,0,0,0,0,0,0,0,0,0,0,0,0,0,0,0,0,0,0,0,0,0,0,0,{"$f":"COUNTIFS(BP4:BP52,\"E-coli\",BQ4:BQ52,\"Indeterminate\")","v":0}]
[null,null,"Proteus spp. sensitive",{"$f":"COUNTIFS(C4:C52,\"Proteus spp.\",D4:D52,\"Sensitive\")","v":0},{"$f":"COUNTIFS(D4:D52,\"Proteus spp.\",E4:E52,\"Sensitive\")","v":0},0,0,0,0,0,0,0,0,0,0,0,0,0,0,0,0,0,0,0,0,0,0,0,0,0,0,0,0,0,0,0,0,0,0,0,0,0,0,0,0,0,0,0,0,0,0,0,0,0,0,0,0,0,0,0,0,0,0,0,0,0,0,0,{"$f":"COUNTIFS(BP4:BP52,\"Proteus spp.\",BQ4:BQ52,\"Sensitive\")","v":0}]
[null,null,"Proteus spp. Indeterminate",{"$f":"COUNTIFS(C4:C52,\"Proteus spp.\",D4:D52,\"Indeterminate\")","v":0},{"$f":"COUNTIFS(D4:D52,\"Proteus spp.\",E4:E52,\"Indeterminate\")","v":0},0,0,0,0,0,0,0,0,0,0,0,0,0,0,0,0,0,0,0,0,0,0,0,0,0,0,0,0,0,0,0,0,0,0,0,0,0,0,0,0,0,0,0,0,0,0,0,0,0,0,0,0,0,0,0,0,0,0,0,0,0,0,0,{"$f":"COUNTIFS(BP4:BP52,\"Proteus spp.\",BQ4:BQ52,\"Indeterminate\")","v":0}]
[null,null,"Klebsiella spp. Sensitive",{"$f":"COUNTIFS(C4:C52,\"Klebsiella spp.\",D4:D52,\"Sensitive\")","v":0},{"$f":"COUNTIFS(D4:D52,\"Klebsiella spp.\",E4:E52,\"Sensitive\")","v":0},0,0,0,0,0,0,0,0,0,0,0,0,0,0,0,0,0,0,0,0,0,0,0,0,0,0,0,0,0,0,0,0,0,0,0,0,0,0,0,0,0,0,0,0,0,0,0,0,0,0,0,0,0,0,0,0,0,0,0,0,0,0,0,{"$f":"COUNTIFS(BP4:BP52,\"Klebsiella spp.\",BQ4:BQ52,\"Sensitive\")","v":0}]
[null,null,"Klebsiella spp. Indeterminate",{"$f":"COUNTIFS(C4:C52,\"Klebsiella spp.\",D4:D52,\"Indeterminate\")","v":0},{"$f":"COUNTIFS(D4:D52,\"Klebsiella spp.\",E4:E52,\"Indeterminate\")","v":0},0,0,0,0,0,0,0,0,0,0,0,0,0,0,0,0,0,0,0,0,0,0,0,0,0,0,0,0,0,0,0,0,0,0,0,0,0,0,0,0,0,0,0,0,0,0,0,0,0,0,0,0,0,0,0,0,0,0,0,0,0,0,0,{"$f":"COUNTIFS(BP4:BP52,\"Klebsiella spp.\",BQ4:BQ52,\"Indeterminate\")","v":0}]
[null,null,"Citrobacter spp. Sensitive",{"$f":"COUNTIFS(C4:C52,\"Citrobacter spp.\",D4:D52,\"Sensitive\")","v":0},{"$f":"COUNTIFS(D4:D52,\"Citrobacter spp.\",E4:E52,\"Sensitive\")","v":0},0,0,0,0,0,0,0,0,0,0,0,0,0,0,0,0,0,0,0,0,0,0,0,0,0,0,0,0,0,0,0,0,0,0,0,0,0,0,0,0,0,0,0,0,0,0,0,0,0,0,0,0,0,0,0,0,0,0,0,0,0,0,0,{"$f":"COUNTIFS(BP4:BP52,\"Citrobacter spp.\",BQ4:BQ52,\"Sensitive\")","v":0}]
[null,null,"Citrobacter spp. Indeterminate",{"$f":"COUNTIFS(C4:C52,\"Citrobacter spp.\",D4:D52,\"Indeterminate\")","v":0},{"$f":"COUNTIFS(D4:D52,\"Citrobacter spp.\",E4:E52,\"Indeterminate\")","v":0},0,0,0,0,0,0,0,0,0,0,0,0,0,0,0,0,0,0,0,0,0,0,0,0,0,0,0,0,0,0,0,0,0,0,0,0,0,0,0,0,0,0,0,0,0,0,0,0,0,0,0,0,0,0,0,0,0,0,0,0,0,0,0,{"$f":"COUNTIFS(BP4:BP52,\"Citrobacter spp.\",BQ4:BQ52,\"Indeterminate\")","v":0}]
[null,null,"Enterbacter spp. Sensitive",{"$f":"COUNTIFS(C4:C52,\"Enterbacter spp.\",D4:D52,\"Sensitive\")","v":0},{"$f":"COUNTIFS(D4:D52,\"Enterbacter spp.\",E4:E52,\"Sensitive\")","v":0},0,0,0,0,0,0,0,0,0,0,0,0,0,0,0,0,0,0,0,0,0,0,0,0,0,0,0,0,0,0,0,0,0,0,0,0,0,0,0,0,0,0,0,0,0,0,0,0,0,0,0,0,0,0,0,0,0,0,0,0,0,0,0,{"$f":"COUNTIFS(BP4:BP52,\"Enterbacter spp.\",BQ4:BQ52,\"Sensitive\")","v":0}]
[null,null,"Enterbacter spp. Indeterminate",{"$f":"COUNTIFS(C4:C52,\"Enterbacter spp.\",D4:D52,\"Indeterminate\")","v":0},{"$f":"COUNTIFS(D4:D52,\"Enterbacter spp.\",E4:E52,\"Indeterminate\")","v":0},0,0,0,0,0,0,0,0,0,0,0,0,0,0,0,0,0,0,0,0,0,0,0,0,0,0,0,0,0,0,0,0,0,0,0,0,0,0,0,0,0,0,0,0,0,0,0,0,0,0,0,0,0,0,0,0,0,0,0,0,0,0,0,{"$f":"COUNTIFS(BP4:BP52,\"Enterbacter spp.\",BQ4:BQ52,\"Indeterminate\")","v":0}]
[null,null,"Pseudomonas aeruginosa sensitive",{"$f":"COUNTIFS(C4:C52,\"Pseudomonas aeruginosa\",D4:D52,\"Sensitive\")","v":0},{"$f":"COUNTIFS(D4:D52,\"Pseudomonas aeruginosa\",E4:E52,\"Sensitive\")","v":0},0,0,0,0,0,0,0,0,0,0,0,0,0,0,0,0,0,0,0,0,0,0,0,0,0,0,0,0,0,0,0,0,0,0,0,0,0,0,0,0,0,0,0,0,0,0,0,0,0,0,0,0,0,0,0,0,0,0,0,0,0,0,0,{"$f":"COUNTIFS(BP4:BP52,\"Pseudomonas aeruginosa\",BQ4:BQ52,\"Sensitive\")","v":0}]
[null,null,"Pseudomonas aeruginosa Indeterminate",{"$f":"COUNTIFS(C4:C52,\"Pseudomonas aeruginosa\",D4:D52,\"Indeterminate\")","v":0},{"$f":"COUNTIFS(D4:D52,\"Pseudomonas aeruginosa\",E4:E52,\"Indeterminate\")","v":0},0,0,0,0,0,0,0,0,0,0,0,0,0,0,0,0,0,0,0,0,0,0,0,0,0,0,0,0,0,0,0,0,0,0,0,0,0,0,0,0,0,0,0,0,0,0,0,0,0,0,0,0,0,0,0,0,0,0,0,0,0,0,0,{"$f":"COUNTIFS(BP4:BP52,\"Pseudomonas aeruginosa\",BQ4:BQ52,\"Indeterminate\")","v":0}]
[null,null,"Serratia spp. Sensitive",{"$f":"COUNTIFS(C4:C52,\"Serratia spp.\",D4:D52,\"Sensitive\")","v":0},{"$f":"COUNTIFS(D4:D52,\"Serratia spp.\",E4:E52,\"Sensitive\")","v":0},0,0,0,0,0,0,0,0,0,0,0,0,0,0,0,0,0,0,0,0,0,0,0,0,0,0,0,0,0,0,0,0,0,0,0,0,0,0,0,0,0,0,0,0,0,0,0,0,0,0,0,0,0,0,0,0,0,0,0,0,0,0,0,{"$f":"COUNTIFS(BP4:BP52,\"Serratia spp.\",BQ4:BQ52,\"Sensitive\")","v":0}]
[null,null,"Serratia spp. Indeterminate",{"$f":"COUNTIFS(C4:C52,\"Serratia spp.\",D4:D52,\"Indeterminate\")","v":0},{"$f":"COUNTIFS(D4:D52,\"Serratia spp.\",E4:E52,\"Indeterminate\")","v":0},0,0,0,0,0,0,0,0,0,0,0,0,0,0,0,0,0,0,0,0,0,0,0,0,0,0,0,0,0,0,0,0,0,0,0,0,0,0,0,0,0,0,0,0,0,0,0,0,0,0,0,0,0,0,0,0,0,0,0,0,0,0,0,{"$f":"COUNTIFS(BP4:BP52,\"Serratia spp.\",BQ4:BQ52,\"Indeterminate\")","v":0}]
[null,null,"Morganella spp. Sensitive",{"$f":"COUNTIFS(C4:C52,\"Morganella spp.\",D4:D52,\"Sensitive\")","v":0},{"$f":"COUNTIFS(D4:D52,\"Morganella spp.\",E4:E52,\"Sensitive\")","v":0},0,0,0,0,0,0,0,0,0,0,0,0,0,0,0,0,0,0,0,0,0,0,0,0,0,0,0,0,0,0,0,0,0,0,0,0,0,0,0,0,0,0,0,0,0,0,0,0,0,0,0,0,0,0,0,0,0,0,0,0,0,0,0,{"$f":"COUNTIFS(BP4:BP52,\"Morganella spp.\",BQ4:BQ52,\"Sensitive\")","v":0}]
[null,null,"Morganella spp. Indeterminate",{"$f":"COUNTIFS(C4:C52,\"Morganella spp.\",D4:D52,\"Indeterminate\")","v":0},{"$f":"COUNTIFS(D4:D52,\"Morganella spp.\",E4:E52,\"Indeterminate\")","v":0},0,0,0,0,0,0,0,0,0,0,0,0,0,0,0,0,0,0,0,0,0,0,0,0,0,0,0,0,0,0,0,0,0,0,0,0,0,0,0,0,0,0,0,0,0,0,0,0,0,0,0,0,0,0,0,0,0,0,0,0,0,0,0,{"$f":"COUNTIFS(BP4:BP52,\"Morganella spp.\",BQ4:BQ52,\"Indeterminate\")","v":0}]
[null,null,"other gram negative bacteria sensitive",{"$f":"COUNTIFS(C4:C52,\"other gram - bacteria\",D4:D52,\"Sensitive\")","v":0},{"$f":"COUNTIFS(D4:D52,\"other gram - bacteria\",E4:E52,\"Sensitive\")","v":0},0,0,0,0,0,0,0,0,0,0,0,0,0,0,0,0,0,0,0,0,0,0,0,0,0,0,0,0,0,0,0,0,0,0,0,0,0,0,0,0,0,0,0,0,0,0,0,0,0,0,0,0,0,0,0,0,0,0,0,0,0,0,0,{"$f":"COUNTIFS(BP4:BP52,\"other gram - bacteria\",BQ4:BQ52,\"Sensitive\")","v":0}]
[null,null,"other gram negative bacteria Indeterminate",{"$f":"COUNTIFS(C4:C52,\"other gram - bacteria\",D4:D52,\"Indeterminate\")","v":0},{"$f":"COUNTIFS(D4:D52,\"other gram - bacteria\",E4:E52,\"Indeterminate\")","v":0},0,0,0,0,0,0,0,0,0,0,0,0,0,0,0,0,0,0,0,0,0,0,0,0,0,0,0,0,0,0,0,0,0,0,0,0,0,0,0,0,0,0,0,0,0,0,0,0,0,0,0,0,0,0,0,0,0,0,0,0,0,0,0,{"$f":"COUNTIFS(BP4:BP52,\"other gram - bacteria\",BQ4:BQ52,\"Indeterminate\")","v":0}]
[null,null," Coag Neg Staph sensitive",{"$f":"COUNTIFS(C4:C52,\"Coag Neg Staph\",D4:D52,\"Sensitive\")","v":0},{"$f":"COUNTIFS(D4:D52,\"Coag Neg Staph\",E4:E52,\"Sensitive\")","v":0},0,0,0,0,0,0,0,0,0,0,0,0,0,0,0,0,0,0,0,0,0,0,0,0,0,0,0,0,0,0,0,0,0,0,0,0,0,0,0,0,0,0,0,0,0,0,0,0,0,0,0,0,0,0,0,0,0,0,0,0,0,0,0,{"$f":"COUNTIFS(BP4:BP52,\"Coag Neg Staph\",BQ4:BQ52,\"Sensitive\")","v":0}]
[null,null," Coag Neg Staph  Indeterminate",{"$f":"COUNTIFS(C4:C52,\"Coag Neg Staph\",D4:D52,\"Indeterminate\")","v":0},{"$f":"COUNTIFS(D4:D52,\"Coag Neg Staph\",E4:E52,\"Indeterminate\")","v":0},0,0,0,0,0,0,0,0,0,0,0,0,0,0,0,0,0,0,0,0,0,0,0,0,0,0,0,0,0,0,0,0,0,0,0,0,0,0,0,0,0,0,0,0,0,0,0,0,0,0,0,0,0,0,0,0,0,0,0,0,0,0,0,{"$f":"COUNTIFS(BP4:BP52,\"Coag Neg Staph\",BQ4:BQ52,\"Indeterminate\")","v":0}]
[null,null,"S. aureus sensitive",{"$f":"COUNTIFS(C4:C52,\"S. aureus\",D4:D52,\"Sensitive\")","v":0},{"$f":"COUNTIFS(D4:D52,\"S. aureus\",E4:E52,\"Sensitive\")","v":0},0,0,0,0,0,0,0,0,0,0,0,0,0,0,0,0,0,0,0,0,0,0,0,0,0,0,0,0,0,0,0,0,0,0,0,0,0,0,0,0,0,0,0,0,0,0,0,0,0,0,0,0,0,0,0,0,0,0,0,0,0,0,0,{"$f":"COUNTIFS(BP4:BP52,\"S. aureus\",BQ4:BQ52,\"Sensitive\")","v":0}]
[null,null,"S. aureus Indeterminate",{"$f":"COUNTIFS(C4:C52,\"S. aureus\",D4:D52,\"Indeterminate\")","v":0},{"$f":"COUNTIFS(D4:D52,\"S. aureus\",E4:E52,\"Indeterminate\")","v":0},0,0,0,0,0,0,0,0,0,0,0,0,0,0,0,0,0,0,0,0,0,0,0,0,0,0,0,0,0,0,0,0,0,0,0,0,0,0,0,0,0,0,0,0,0,0,0,0,0,0,0,0,0,0,0,0,0,0,0,0,0,0,0,{"$f":"COUNTIFS(BP4:BP52,\"S. aureus\",BQ4:BQ52,\"Indeterminate\")","v":0}]
[null,null," Enterococcus spp. Sensitive",{"$f":"COUNTIFS(C4:C52,\"Enterococcus spp.\",D4:D52,\"Sensitive\")","v":0},{"$f":"COUNTIFS(D4:D52,\"Enterococcus spp.\",E4:E52,\"Sensitive\")","v":0},0,0,0,0,0,0,0,0,0,0,0,0,0,0,0,0,0,0,0,0,0,0,0,0,0,0,0,0,0,0,0,0,0,0,0,0,0,0,0,0,0,0,0,0,0,0,0,0,0,0,0,0,0,0,0,0,0,0,0,0,0,0,0,{"$f":"COUNTIFS(BP4:BP52,\"Enterococcus spp.\",BQ4:BQ52,\"Sensitive\")","v":0}]
[null,null," Enterococcus spp. Indeterminate",{"$f":"COUNTIFS(C4:C52,\"Enterococcus spp.\",D4:D52,\"Indeterminate\")","v":0},{"$f":"COUNTIFS(D4:D52,\"Enterococcus spp.\",E4:E52,\"Indeterminate\")","v":0},0,0,0,0,0,0,0,0,0,0,0,0,0,0,0,0,0,0,0,0,0,0,0,0,0,0,0,0,0,0,0,0,0,0,0,0,0,0,0,0,0,0,0,0,0,0,0,0,0,0,0,0,0,0,0,0,0,0,0,0,0,0,0,{"$f":"COUNTIFS(BP4:BP52,\"Enterococcus spp.\",BQ4:BQ52,\"Indeterminate\")","v":0}]
[null,null," Streptococcus spp. Sensitive",{"$f":"COUNTIFS(C4:C52,\"  Streptococcus spp.\",D4:D52,\"Sensitive\")","v":0},{"$f":"COUNTIFS(D4:D52,\"  Streptococcus spp.\",E4:E52,\"Sensitive\")","v":0},0,0,0,0,0,0,0,0,0,0,0,0,0,0,0,0,0,0,0,0,0,0,0,0,0,0,0,0,0,0,0,0,0,0,0,0,0,0,0,0,0,0,0,0,0,0,0,0,0,0,0,0,0,0,0,0,0,0,0,0,0,0,0,{"$f":"COUNTIFS(BP4:BP52,\"  Streptococcus spp.\",BQ4:BQ52,\"Sensitive\")","v":0}]
[null,null," Streptococcus spp. Indeterminate",{"$f":"COUNTIFS(C4:C52,\" Streptococcus spp.\",D4:D52,\"Indeterminate\")","v":0},{"$f":"COUNTIFS(D4:D52,\" Streptococcus spp.\",E4:E52,\"Indeterminate\")","v":0},0,0,0,0,0,0,0,0,0,0,0,0,0,0,0,0,0,0,0,0,0,0,0,0,0,0,0,0,0,0,0,0,0,0,0,0,0,0,0,0,0,0,0,0,0,0,0,0,0,0,0,0,0,0,0,0,0,0,0,0,0,0,0,{"$f":"COUNTIFS(BP4:BP52,\" Streptococcus spp.\",BQ4:BQ52,\"Indeterminate\")","v":0}]
[null,null,"other gram positive bacteria sensitive",{"$f":"COUNTIFS(C4:C52,\"other gram + bacteria\",D4:D52,\"Sensitive\")","v":0},{"$f":"COUNTIFS(D4:D52,\"other gram + bacteria\",E4:E52,\"Sensitive\")","v":0},0,0,0,0,0,0,0,0,0,0,0,0,0,0,0,0,0,0,0,0,0,0,0,0,0,0,0,0,0,0,0,0,0,0,0,0,0,0,0,0,0,0,0,0,0,0,0,0,0,0,0,0,0,0,0,0,0,0,0,0,0,0,0,{"$f":"COUNTIFS(BP4:BP52,\"other gram + bacteria\",BQ4:BQ52,\"Sensitive\")","v":0}]
[null,null,"other gram positive bacteria Indeterminate",{"$f":"COUNTIFS(C4:C52,\"other gram + bacteria\",D4:D52,\"Indeterminate\")","v":0},{"$f":"COUNTIFS(D4:D52,\"other gram + bacteria\",E4:E52,\"Indeterminate\")","v":0},0,0,0,0,0,0,0,0,0,0,0,0,0,0,0,0,0,0,0,0,0,0,0,0,0,0,0,0,0,0,0,0,0,0,0,0,0,0,0,0,0,0,0,0,0,0,0,0,0,0,0,0,0,0,0,0,0,0,0,0,0,0,0,{"$f":"COUNTIFS(BP4:BP52,\"other gram + bacteria\",BQ4:BQ52,\"Indeterminate\")","v":0}]
[null,null,"Yeast sensitive",{"$f":"COUNTIFS(C4:C52,\"Yeast\",D4:D52,\"Sensitive\")","v":0},{"$f":"COUNTIFS(D4:D52,\"Yeast\",E4:E52,\"Sensitive\")","v":0},0,0,0,0,0,0,0,0,0,0,0,0,0,0,0,0,0,0,0,0,0,0,0,0,0,0,0,0,0,0,0,0,0,0,0,0,0,0,0,0,0,0,0,0,0,0,0,0,0,0,0,0,0,0,0,0,0,0,0,0,0,0,0,{"$f":"COUNTIFS(BP4:BP52,\"Yeast\",BQ4:BQ52,\"Sensitive\")","v":0}]
[null,null,"Yeast Indeterminate",{"$f":"COUNTIFS(C4:C52,\"Yeast\",D4:D52,\"Indeterminate\")","v":0},{"$f":"COUNTIFS(D4:D52,\"Yeast\",E4:E52,\"Indeterminate\")","v":0},0,0,0,0,0,0,0,0,0,0,0,0,0,0,0,0,0,0,0,0,0,0,0,0,0,0,0,0,0,0,0,0,0,0,0,0,0,0,0,0,0,0,0,0,0,0,0,0,0,0,0,0,0,0,0,0,0,0,0,0,0,0,0,{"$f":"COUNTIFS(BP4:BP52,\"Yeast\",BQ4:BQ52,\"Indeterminate\")","v":0}]

{"sheet":"Antibiogram","index":6,"n_rows":18,"n_cols":33,"rows_kept":18,"cut":false,"hidden":true,"merged":[[11,18,11,20],[11,21,11,22],[11,23,11,25],[11,26,11,32],[0,0,0,24],[1,2,1,3],[1,8,1,15],[1,16,1,17],[11,2,11,3],[1,4,1,7],[1,18,1,20],[11,4,11,8],[11,10,11,17]]}
["Antimicrobial Sensitivity Data"]
["Year",{"$f":"#REF!","v":{"$error":"#REF!"}},"Aminoglycosides",null,"B-Lactams",null,null,null,"Cephalosporin",null,null,null,null,null,null,null,"Quinolones",null,"Other"]
["Gram Negative Pathogen","# of Isolates/Patients","Gentamicin","Tobramycin","Ampicillin/Sulbactam (Unasyn)","Imipenem","Meropenem","Pipercillin-Tazobactam","Cefazolin","Cefepime","Cefdinir","Cefpodoxime","Cefoxitin","Ceftazidime","Ceftriaxone","Cefuroxime","Ciprofloxacin","Levofloxacin","Amoxacillin-Clavulanate (Augmentin)","Nitrofurantoin","Tigecycline"]
["Citrobacter spp.",{"$f":"'Appropriateness of Abx'!AJ101","v":0}]
["Enterobacter spp.",{"$f":"'Appropriateness of Abx'!AK101","v":0}]
["Escherichia coli",{"$f":"'Appropriateness of Abx'!AG101","v":0}]
["Klebsiella spp.",{"$f":"'Appropriateness of Abx'!AI101","v":0}]
["Morganella spp.",{"$f":"'Appropriateness of Abx'!AN101","v":0}]
["Pseudomonas aeruginosa",{"$f":"'Appropriateness of Abx'!AL101","v":0}]
["Serratia spp.",{"$f":"'Appropriateness of Abx'!AM101","v":0}]
[null,{"$f":"SUM(B4:B10)","v":0}]
["Year",{"$f":"#REF!","v":{"$error":"#REF!"}},"Aminoglycosides",null,"PCN",null,null,null,null,"Carba-penams","Cephalosporin",null,null,null,null,null,null,null,"Macrolides",null,null,"Quinolones",null,"Tetracycline",null,null,"Others"]
["Gram Positive Pathogens","# of isolates/Patients","Gentamicin","Tobramycin","Amoxicillin","Oxacillin","Penicillin","Piperacillin","Timentin","Imepenem","Cefazolin","Cefepime","Cefdinir","Cefpodoxime","Cefoxitin","Ceftazidime","Ceftriaxone","Cefuroxime","Erythromycin","Clindamycin","Linezolid","Ciprofloxacin","Levofloxacin","Doxycycline","Minocycline","Tetracycline","Amoxacillin-Clavulanate (Augmentin)","Ampicillin/Sulbactam (Unasyn)","Nitrofurantoin","Rifampin","Tetracycline","TMP/SMX (Bactrim)","Vancomycin"]
["S. aureus",{"$f":"'Appropriateness of Abx'!AQ101","v":0}]
["Staphylococcus coag neg (CNS)",{"$f":"'Appropriateness of Abx'!AP101","v":0}]
["Enterococcus spp.",{"$f":"'Appropriateness of Abx'!AR101","v":0}]
["Streptococcus spp. ",{"$f":"'Appropriateness of Abx'!AS101","v":0}]
[null,{"$f":"SUM(B14:B17)","v":0}]